Workbook

Sheet modList01 (hidden)

Sheet Инструкция
AA1: (требуется обновление)
C2: JKH.OPEN.INFO.BALANCE.WARM
B5: Показатели, подлежащие раскрытию теплоснабжающими, теплосетевыми организациями
E7: • На рабочем месте должен быть установлен MS Office 2007 SP3, 2010, 2013 с полной версией MS Excel • Макросы во время работы должны быть включены (!) • Для корректной работы отчёта требуется выбрать низкий уровень безопасности (В меню MS Excel: Параметры Excel | Центр управления безопасностью | Параметры центра управления безопасностью | Параметры макросов | Включить все макросы | ОК) • Не рекомендуется снимать защиту с листов и каким-либо образом модифицировать защищаемые формулы и расчётные поля, в противном случае, отчёт будет отклонён системой • При сохранении следует выбирать формат XLSM (Книга Excel)
E21: A | F21: - необязательные для заполнения | O21: A | P21: - с формулами и константами
E22: A | F22: - обязательные для заполнения | O22: A | P22: - с выбором значений до двойному клику,
P23: либо с возможностью выбора даты из календаря или ручного ввода
E35: Если в предложенном Вам списке необходимая организация, МР/МО отсутствуют, обновите реестры с помощью кнопок В результате синхронизации с базой данных список организаций (МР/МО) будет заменён актуальным (механизм синхронизации требует подключения к сети Интернет и основан на использовании протокола HTTPS (TCP порт 443)) Если после обновления Вам не удалось найти необходимую организацию в списке, обратитесь к ответственному за поддержание реестра Вашего региона. Информация о региональных органах регулирования доступна по ссылке:
E40: http://www.fstrf.ru/regions/region/showlist
E46: • При сохранении шаблона осуществляется проверка корректности данных, в том числе на наличие значений в ячейках, обязательных для заполнения • Если какая-то ячейка не удовлетворяет условию проверки, на лист «Проверка» добавляется гиперссылка на данную ячейку и указывается причина ошибки • В колонке «Статус» для каждого сообщения возможны 2 значения: ошибка и предупреждение • При наличии сообщений со статусом «Ошибка» шаблон будет отклонён системой и не будет загружен в хранилище данных, сообщения со статусом «Предупреждение» носят информационный характер, и такой шаблон будет принят системой
E58: Web-сайт: | H58: http://support.eias.ru/index.php?a=add&catid=5
E59: Дистрибутивы: | H59: http://eias.ru/?page=show_distrs
H60: для устранения ошибок (например, "Compile error in hidden module")
E70: Принципы работы с шаблоном
E71: Перед началом работы с шаблоном Вам необходимо нажать кнопку "Приступить к заполнению", после чего в шаблоне отобразятся листы для заполнения.
E72: На листе «Титульный» нужно заполнить все ячейки голубого и синего цвета. Для создания печатной формы нажмите на иконку принтера на листе «Титульный» (левый верхний угол).
E73: Гиперссылки на листах вводите, не нарушая цвет ячейки (если копируете гиперссылку из браузера, то выполните двойной щелчок левой кнопки мыши по ячейке и только после этого можете вставить скопированный элемент).
E74: При вводе даты на расчетных листах необходимо выбрать дату из календаря (иконка справа от выбранной ячейки), либо ввести дату непосредственно в ячейку в формате - 'ДД.ММ.ГГГГ'.
E75: Если какой-либо из показателей на расчетных листах для Вашей организации отсутствует, введите в поле, обязательное для заполнение, «0» (для числовых показателей) и «-» (для текстовых).
E76: Внимательно следите за информационными сообщениями на расчетных листах.
E77: Все необходимые комментарии по всем формам Вы можете отразить на листе «Комментарии».
E82: E-mail: | H82: openinfo@eias.ru
E83: Web-сайт: | H83: http://eias.ru/?page=show_templates
E98: При наличии подключения к Интернет, можно автоматически проверять наличие доступных обновлений. Выберите способ оповещения о наличии обновлений для отчёта:
F100: проверять доступные обновления (рекомендуется) | AA100: y
F102: никогда не проверять наличие обновлений (не рекомендуется)

Sheet Лог обновления (hidden)
A1: Дата/Время | B1: Сообщение | C1: Статус
A3: 2014-02-25T15:27:13 | B3: Проверка доступных обновлений... | C3: Информация
A4: 2014-02-25T15:27:13 | B4: Доступно обновление до версии 6.0.1 | C4: Информация
A5: 2014-02-25T15:27:13 | B5: Описание изменений: Версия 6.0.1 (только(!!!) для шаблонов версии 6.0) 1. корректировка наименования п.4 (новое значение - "Сведения об изменении стоимости основных фондов (в том числе за счет их ввода в эксплуатацию (вывода из эксплуатации)), их переоценки") листа "Показатели (факт)", 2. корректировка п.5, п.5.1 в части возможности ввода отрицательных значений, 3. увеличение списка видов деятельности на листе "Титульный". Если версия Вашего шаблона ниже 6.0, обратитесь к администратору Вашего субъекта РФ. | C5: Информация
A6: 2014-02-25T15:27:13 | B6: Размер файла обновления: 282624 байт | C6: Информация
A7: 2014-02-25T15:27:23 | B7: Подготовка к обновлению... | C7: Информация
A8: 2014-02-25T15:27:26 | B8: Сохранение файла резервной копии: T:\Упр. рег. в сфере КК\Мониторинга и наблюдения организаций коммунальной сферы\@Общая\ЕИАС\!!!! Шаблоны РЕГИОНАЛЬНЫЕ\ГОТОВЫЕ ШАБЛОНЫ\Раскрытие информации\!!! Новые шаблоны\ТС\JKH.OPEN.INFO.BALANCE.WARM.BKP..xls | C8: Информация
A9: 2014-02-25T15:27:39 | B9: Резервная копия создана: T:\Упр. рег. в сфере КК\Мониторинга и наблюдения организаций коммунальной сферы\@Общая\ЕИАС\!!!! Шаблоны РЕГИОНАЛЬНЫЕ\ГОТОВЫЕ ШАБЛОНЫ\Раскрытие информации\!!! Новые шаблоны\ТС\JKH.OPEN.INFO.BALANCE.WARM.BKP..xls | C9: Информация
A10: 2014-02-25T15:27:39 | B10: Создание книги для установки обновлений... | C10: Информация
A11: 2014-02-25T15:27:39 | B11: Ошибка при инициализации обновления | C11: Ошибка
A12: 2014-02-25T15:28:59 | B12: Проверка доступных обновлений... | C12: Информация
A13: 2014-02-25T15:29:03 | B13: Доступно обновление до версии 6.0.1 | C13: Информация
A14: 2014-02-25T15:29:03 | B14: Описание изменений: Версия 6.0.1 (только(!!!) для шаблонов версии 6.0) 1. корректировка наименования п.4 (новое значение - "Сведения об изменении стоимости основных фондов (в том числе за счет их ввода в эксплуатацию (вывода из эксплуатации)), их переоценки") листа "Показатели (факт)", 2. корректировка п.5, п.5.1 в части возможности ввода отрицательных значений, 3. увеличение списка видов деятельности на листе "Титульный". Если версия Вашего шаблона ниже 6.0, обратитесь к администратору Вашего субъекта РФ. | C14: Информация
A15: 2014-02-25T15:29:03 | B15: Размер файла обновления: 282624 байт | C15: Информация
A16: 2014-02-25T15:29:05 | B16: Подготовка к обновлению... | C16: Информация
A17: 2014-02-25T15:29:08 | B17: Сохранение файла резервной копии: T:\Упр. рег. в сфере КК\Мониторинга и наблюдения организаций коммунальной сферы\@Общая\ЕИАС\!!!! Шаблоны РЕГИОНАЛЬНЫЕ\ГОТОВЫЕ ШАБЛОНЫ\Раскрытие информации\!!! Новые шаблоны\ТС\JKH.OPEN.INFO.BALANCE.WARM.BKP..xls | C17: Информация
A18: 2014-02-25T15:29:21 | B18: Резервная копия создана: T:\Упр. рег. в сфере КК\Мониторинга и наблюдения организаций коммунальной сферы\@Общая\ЕИАС\!!!! Шаблоны РЕГИОНАЛЬНЫЕ\ГОТОВЫЕ ШАБЛОНЫ\Раскрытие информации\!!! Новые шаблоны\ТС\JKH.OPEN.INFO.BALANCE.WARM.BKP..xls | C18: Информация
A19: 2014-02-25T15:29:21 | B19: Создание книги для установки обновлений... | C19: Информация
A20: 2014-02-25T15:29:35 | B20: Файл обновления загружен: T:\Упр. рег. в сфере КК\Мониторинга и наблюдения организаций коммунальной сферы\@Общая\ЕИАС\!!!! Шаблоны РЕГИОНАЛЬНЫЕ\ГОТОВЫЕ ШАБЛОНЫ\Раскрытие информации\!!! Новые шаблоны\ТС\UPDATE.JKH.OPEN.INFO.BALANCE.WARM.TO.6.0.1.75.xls | C20: Информация
A21: 2014-02-25T15:29:49 | B21: Обновление завершилось удачно! Шаблон JKH.OPEN.INFO.BALANCE.WARM.BKP..xls сохранен под именем 'JKH.OPEN.INFO.BALANCE.WARM.BKP.(v6.0.1).xls' | C21: Информация
A22: 2016-11-18T18:52:16 | B22: Проверка доступных обновлений... | C22: Информация
A23: 2016-11-18T18:52:17 | B23: Версия шаблона 6.0.1 актуальна, обновление не требуется | C23: Информация
A24: 2016-11-18T18:52:40 | B24: Проверка доступных обновлений... | C24: Информация
A25: 2016-11-18T18:52:40 | B25: Версия шаблона 6.0.1 актуальна, обновление не требуется | C25: Информация
A26: 2016-11-18T19:51:58 | B26: Проверка доступных обновлений... | C26: Информация
A27: 2016-11-18T19:51:59 | B27: Версия шаблона 6.0.1 актуальна, обновление не требуется | C27: Информация
A28: 2016-11-20T15:28:35 | B28: Проверка доступных обновлений... | C28: Информация
A29: 2016-11-20T15:28:35 | B29: Версия шаблона 6.0.1 актуальна, обновление не требуется | C29: Информация
A30: 2016-12-16T17:08:22 | B30: Проверка доступных обновлений... | C30: Информация
A31: 2016-12-16T17:08:23 | B31: Версия шаблона 6.0.1 актуальна, обновление не требуется | C31: Информация
A32: 2016-12-16T17:22:51 | B32: Проверка доступных обновлений... | C32: Информация
A33: 2016-12-16T17:22:52 | B33: Версия шаблона 6.0.1 актуальна, обновление не требуется | C33: Информация
A34: 2018-01-29T10:51:40 | B34: Проверка доступных обновлений... | C34: Информация
A35: 2018-01-29T10:51:41 | B35: Нет доступных обновлений для шаблона с кодом JKH.OPEN.INFO.BALANCE.WARM! | C35: Информация
A36: 2018-01-30T15:21:26 | B36: Проверка доступных обновлений... | C36: Информация
A37: 2018-01-30T15:21:27 | B37: Нет доступных обновлений для шаблона с кодом JKH.OPEN.INFO.BALANCE.WARM! | C37: Информация
A38: 2018-02-06T16:31:53 | B38: Проверка доступных обновлений... | C38: Информация
A39: 2018-02-06T16:31:54 | B39: Нет доступных обновлений для шаблона с кодом JKH.OPEN.INFO.BALANCE.WARM! | C39: Информация
A40: 2018-02-27T11:59:40 | B40: Проверка доступных обновлений... | C40: Информация
A41: 2018-02-27T11:59:41 | B41: Нет доступных обновлений для шаблона с кодом JKH.OPEN.INFO.BALANCE.WARM! | C41: Информация
A42: 2018-02-28T09:08:59 | B42: Проверка доступных обновлений... | C42: Информация
A43: 2018-02-28T09:09:01 | B43: Нет доступных обновлений для шаблона с кодом JKH.OPEN.INFO.BALANCE.WARM! | C43: Информация
A44: 2018-03-30T08:26:29 | B44: Проверка доступных обновлений... | C44: Информация
A45: 2018-03-30T08:26:30 | B45: Нет доступных обновлений для шаблона с кодом JKH.OPEN.INFO.BALANCE.WARM! | C45: Информация
A46: 2018-03-30T09:12:02 | B46: Проверка доступных обновлений... | C46: Информация
A47: 2018-03-30T09:12:03 | B47: Нет доступных обновлений для шаблона с кодом JKH.OPEN.INFO.BALANCE.WARM! | C47: Информация

Sheet Титульный
F4: 01.01.2016
E5: Показатели, подлежащие раскрытию теплоснабжающими, теплосетевыми организациями
E7: Субъект РФ | F7: Рязанская область
E9: Публикация | F9: На сайте регулирующего органа
A11: Сайт организации в сети Интернет | E11: По желанию организации информация раскрыта в дополнительных источниках публикации? | F11: да
E13: Отчетный период (год) | F13: 2017
E15: Является ли данное юридическое лицо подразделением (филиалом) другой организации | F15: да
E17: Наименование организации | F17: ПУБЛИЧНОЕ АКЦИОНЕРНОЕ ОБЩЕСТВО "ВТОРАЯ ГЕНЕРИРУЮЩАЯ КОМПАНИЯ ОПТОВОГО РЫНКА ЭЛЕКТРОЭНЕРГИИ"
E18: Наименование филиала | F18: филиал ПАО "ОГК-2" - Рязанская ГРЭС
E19: ИНН | F19: 2607018122
E20: КПП | F20: 621143001
E22: Вид деятельности | F22: Производство (комбинированная выработка)+сбыт
E24: Производство
E25: Передача
E26: Сбыт
E28: Режим налогообложения | F28: общий
E30: Регулируемая организация осуществляет сдачу годового бухгалтерского баланса в налоговые органы | F30: нет
E32: Дата направления годового бухгалтерского баланса в налоговые органы
E34: Превышает ли выручка от регулируемой деятельности 80% совокупной выручки за отчетный год | F34: нет
E36: Организация выполняет инвестиционную программу | F36: да
A38: Печатное издание | E38: Отсутствует Интернет в границах территории муниципальных образований, где организация осуществляет регулируемые услуги | F38: нет
F40: Адрес регулируемой организации
E41: Юридический адрес | F41: 356126, КРАЙ СТАВРОПОЛЬСКИЙ,
E42: Почтовый адрес | F42: Промышленная ул. Д. 1 г. Новомичуринск, Рязанской обл. 391160
F44: Руководитель
E45: Фамилия, имя, отчество | F45: Тимофеев Павел Вячеславович
E46: (код) номер телефона | F46: (49141)4-18-21
F48: Главный бухгалтер
E49: Фамилия, имя, отчество | F49: Левушкина Елена Валентиновна
E50: (код) номер телефона | F50: (49141)4-22-26
F52: Должностное лицо, ответственное за составление формы
E53: Фамилия, имя, отчество | F53: Яшунина Татьяна Николаевна
E54: Должность | F54: ведущий экономист по планированию
E55: (код) номер телефона | F55: 8(49141)45-108
E56: e-mail | F56: Yashunina.Tatyana@rgr.ogk2.ru

Sheet Список МО
D4: Дифференциация тарифа
D5: ПУБЛИЧНОЕ АКЦИОНЕРНОЕ ОБЩЕСТВО "ВТОРАЯ ГЕНЕРИРУЮЩАЯ КОМПАНИЯ ОПТОВОГО РЫНКА ЭЛЕКТРОЭНЕРГИИ"
F7: Система теплоснабжения
E8: Условный порядковый номер | F8: 1
E9: Описание | F9: 1
D11: № п/п | E11: Муниципальный район | F11: № п/п | G11: Муниципальное образование | H11: ОКТМО
D12: 1 | E12: 2 | F12: 3 | G12: 4 | H12: 5
D13: 0 | F13: 0
C14: О | D14: 1 | E14: Пронский муниципальный район | F14: 1 | G14: Новомичуринское | H14: 61625114
G15: Добавить МО
E16: Добавить МР

Sheet Показатели (факт)
D5: Информация об основных показателях финансово-хозяйственной деятельности регулируемых организаций, включая структуру основных производственных затрат (в части регулируемой деятельности) *
D6: ПУБЛИЧНОЕ АКЦИОНЕРНОЕ ОБЩЕСТВО "ВТОРАЯ ГЕНЕРИРУЮЩАЯ КОМПАНИЯ ОПТОВОГО РЫНКА ЭЛЕКТРОЭНЕРГИИ"
D8: № п/п | E8: Информация, подлежащая раскрытию | F8: Единица измерения | G8: Значение
D9: 1 | E9: 2 | F9: 3 | G9: 4
D10: 1 | E10: Выручка от регулируемой деятельности, в том числе по видам деятельности: | F10: тыс руб | G10: =SUM(G11:G13) -> 208906.1258
D11: 1.0
C12: О | D12: 1.1 | E12: Выручка по теплоэнергии | F12: тыс руб | G12: 208906.1258
E13: Добавить вид деятельности
D14: 2 | E14: Себестоимость производимых товаров (оказываемых услуг) по регулируемому виду деятельности, включая: | F14: тыс руб | G14: =SUM(G15:G16)+G34+SUM(G37:G45)+G48+G51+G53 -> 353034.8712
D15: 2.1 | E15: Расходы на покупаемую тепловую энергию (мощность), теплоноситель | F15: тыс руб | G15: 0
D16: 2.2 | E16: Расходы на топливо | F16: тыс руб | G16: =SUMIF(flagSum_List02_2,"p",G17:G33) -> 174278.8472
A17: 2.2.0 | D17: =A17 -> 2.2.0
A18: 2.2.1 | C18: О | D18: =A18 -> 2.2.1 | E18: уголь бурый | F18: x | G18: =G19*G20+G21 -> 149368.8669 | H18: p
D19: =A18&".1" -> 2.2.1.1 | E19: Объем | F19: тонны | G19: 72079.74936
D20: =A18&".2" -> 2.2.1.2 | E20: Стоимость за единицу объема | F20: тыс руб | G20: 0.4832095428
D21: =A18&".3" -> 2.2.1.3 | E21: Стоимость доставки | F21: тыс руб | G21: 114539.2442
D22: =A18&".4" -> 2.2.1.4 | E22: Способ приобретения | F22: x | G22: торги/аукционы
A23: 2.2.2 | C23: О | D23: =A23 -> 2.2.2 | E23: газ природный по регулируемой цене | F23: x | G23: =G24*G25+G26 -> 24897.76136 | H23: p
D24: =A23&".1" -> 2.2.2.1 | E24: Объем | F24: тыс м3 | G24: 4829.148124
D25: =A23&".2" -> 2.2.2.2 | E25: Стоимость за единицу объема | F25: тыс руб | G25: 4.496833623
D26: =A23&".3" -> 2.2.2.3 | E26: Стоимость доставки | F26: тыс руб | G26: 3181.885706
D27: =A23&".4" -> 2.2.2.4 | E27: Способ приобретения | F27: x | G27: прямые договора без торгов
A28: 2.2.3 | C28: О | D28: =A28 -> 2.2.3 | E28: мазут | F28: x | G28: =G29*G30+G31 -> 12.21896455 | H28: p
D29: =A28&".1" -> 2.2.3.1 | E29: Объем | F29: тонны | G29: 1.57867631
D30: =A28&".2" -> 2.2.3.2 | E30: Стоимость за единицу объема | F30: тыс руб | G30: 7.292406275
D31: =A28&".3" -> 2.2.3.3 | E31: Стоимость доставки | F31: тыс руб | G31: 0.7066155165
D32: =A28&".4" -> 2.2.3.4 | E32: Способ приобретения | F32: x | G32: прямые договора без торгов
E33: Добавить вид топлива
D34: 2.3 | E34: Расходы на покупаемую электрическую энергию (мощность), используемую в технологическом процессе | F34: тыс руб | G34: 407.29482
D35: 2.3.1 | E35: Средневзвешенная стоимость 1 кВт.ч (с учетом мощности) | F35: руб | G35: 4.655996821
D36: 2.3.2 | E36: Объем приобретенной электрической энергии | F36: тыс кВт.ч | G36: =G34/G35 -> 87.47746952
D37: 2.4 | E37: Расходы на приобретение холодной воды, используемой в технологическом процессе | F37: тыс руб | G37: 0
D38: 2.5 | E38: Расходы на хим.реагенты, используемые в технологическом процессе | F38: тыс руб | G38: 0
D39: 2.6 | E39: Расходы на оплату труда основного производственного персонала | F39: тыс руб | G39: 18687.09265
D40: 2.7 | E40: Отчисления на социальные нужды основного производственного персонала | F40: тыс руб | G40: 5770.02066
D41: 2.8 | E41: Расходы на оплату труда административно-управленческого персонала | F41: тыс руб | G41: 0
D42: 2.9 | E42: Отчисления на социальные нужды административно-управленческого персонала | F42: тыс руб | G42: 0
D43: 2.10 | E43: Расходы на амортизацию основных производственных средств | F43: тыс руб | G43: 30746.74134
D44: 2.11 | E44: Расходы на аренду имущества, используемого для осуществления регулируемого вида деятельности | F44: тыс руб | G44: 1163.85287
D45: 2.12 | E45: Общепроизводственные расходы, в том числе отнесенные к ним: | F45: тыс руб | G45: =G46+6492.12993+1886.52415+1888.43542 -> 76899.80695
D46: 2.12.1 | E46: Расходы на текущий ремонт | F46: тыс руб | G46: 66632.71745
D47: 2.12.2 | E47: Расходы на капитальный ремонт | F47: тыс руб | G47: 0
D48: 2.13 | E48: Общехозяйственные расходы, в том числе отнесенные к ним: | F48: тыс руб | G48: =9962.42746999998+288.93099+6288.08014999999+173.44193+1654.63494 -> 18367.51548
D49: 2.13.1 | E49: Расходы на текущий ремонт | F49: тыс руб | G49: 0
D50: 2.13.2 | E50: Расходы на капитальный ремонт | F50: тыс руб | G50: 0
D51: 2.14 | E51: Расходы на капитальный и текущий ремонт основных производственных средств, в том числе: | F51: тыс руб | G51: 0
D52: 2.14.1 | E52: Информация об объемах товаров и услуг, их стоимости и способах приобретения у тех организаций, сумма оплаты услуг которых превышает 20 процентов суммы расходов по указанной статье расходов | F52: x | G52: отсутствует
D53: 2.15 | E53: Прочие расходы, которые подлежат отнесению на регулируемые виды деятельности в соответствии с законодательством РФ | F53: тыс руб | G53: =SUM(G54:G56) -> 26713.69921
D54: 2.15.0
C55: О | D55: 2.15.1 | E55: расходы из прибыли | F55: тыс руб | G55: 26713.69921
E56: Добавить прочие расходы
D57: 3 | E57: Валовая прибыль (убытки) от реализации товаров и оказания услуг по регулируемому виду деятельности | F57: тыс руб | G57: =List02_p1-List02_p3 -> -144128.7454
D58: 4 | E58: Чистая прибыль, полученная от регулируемого вида деятельности, в том числе: | F58: тыс руб | G58: 0
D59: 4.1 | E59: Размер расходования чистой прибыли на финансирование мероприятий, предусмотренных инвестиционной программой | F59: тыс руб | G59: 0
D60: 5 | E60: Сведения об изменении стоимости основных фондов, в том числе за счет их ввода в эксплуатацию (вывода из эксплуатации), а также стоимости их переоценки | F60: тыс руб | G60: 0
D61: 5.1 | E61: За счет ввода (вывода) из эксплуатации | F61: тыс руб | G61: 0
D62: 6 | E62: Стоимость переоценки основных фондов | F62: тыс руб | G62: 0
D63: 7 | E63: Годовая бухгалтерская отчетность, включая бухгалтерский баланс и приложения к нему | F63: x | G63: http://www.ogk2.ru/rus/si/finances/buhuch/
D64: 8 | E64: Установленная тепловая мощность объектов основных фондов, используемых для осуществления регулируемых видов деятельности, в том числе по каждому источнику тепловой энергии: | F64: Гкал/ч | G64: 213.25
D65: 8.0
E66: Добавить источник тепловой энергии
D67: 9 | E67: Тепловая нагрузка по договорам, заключенным в рамках осуществления регулируемых видов деятельности | F67: Гкал/ч | G67: =G70/8448*1000 -> 17.56236146
D68: 10 | E68: Объем вырабатываемой регулируемой организацией тепловой энергии в рамках осуществления регулируемых видов деятельности | F68: тыс Гкал | G68: 237.343708
D69: 11 | E69: Объем приобретаемой регулируемой организацией тепловой энергии в рамках осуществления регулируемых видов деятельности | F69: тыс Гкал | G69: 0
D70: 12 | E70: Объем тепловой энергии, отпускаемой потребителям по договорам, заключенным в рамках осуществления регулируемых видов деятельности, в том числе: | F70: тыс Гкал | G70: =SUM(G71:G72) -> 148.3668296
D71: 12.1 | E71: Определенном по приборам учета | F71: тыс Гкал | G71: 117.1483016
D72: 12.2 | E72: Определенном расчетным путем (нормативам потребления коммунальных услуг) | F72: тыс Гкал | G72: 31.218528
D73: 13 | E73: Нормативы технологических потерь при передаче тепловой энергии, теплоносителя по тепловым сетям, утвержденные уполномоченным органом | F73: Ккал/ч.мес | G73: =48400/8448*1000 -> 5729.166667
D74: 14 | E74: Фактический объем потерь при передаче тепловой энергии | F74: тыс Гкал | G74: 72.698577
D75: 15 | E75: Среднесписочная численность основного производственного персонала | F75: чел | G75: 30
D76: 16 | E76: Среднесписочная численность административно-управленческого персонала | F76: чел | G76: 2
D77: 17 | E77: Удельный расход условного топлива на единицу тепловой энергии, отпускаемой в тепловую сеть, в том числе с разбивкой по источникам тепловой энергии, используемым для осуществления регулируемых видов деятельности | F77: кг усл. топл/Гкал | G77: 188.8009049
D78: 17.0
E79: Добавить источник тепловой энергии
D80: 18 | E80: Удельный расход электрической энергии на производство (передачу) тепловой энергии на единицу тепловой энергии, отпускаемой потребителям по договорам, заключенным в рамках осуществления регулируемой деятельности | F80: тыс кВт.ч/Гкал | G80: 36.70392223
D81: 19 | E81: Удельный расход холодной воды на производство (передачу) тепловой энергии на единицу тепловой энергии, отпускаемой потребителям по договорам, заключенным в рамках осуществления регулируемой деятельности | F81: м3/Гкал | G81: =941457/G68/1000 -> 3.966639807
D82: 20 | E82: Комментарии | F82: x | G82: 0
D84: * | E84: Раскрывается не позднее 30 дней со дня сдачи годового бухгалтерского баланса в налоговые органы.

Sheet Показатели (2) (hidden)
D5: Информация об объемах товаров и услуг, их стоимости и способах приобретения *
D6: ПУБЛИЧНОЕ АКЦИОНЕРНОЕ ОБЩЕСТВО "ВТОРАЯ ГЕНЕРИРУЮЩАЯ КОМПАНИЯ ОПТОВОГО РЫНКА ЭЛЕКТРОЭНЕРГИИ"
D8: № п/п | E8: Наименование поставщика | G8: № п/п | H8: Способ приобретения | I8: Реквизиты договора | K8: № п/п | L8: Наименование товара/услуги | M8: Объем приобретенных товаров, услуг | N8: Единица измерения объема | O8: Стоимость, тыс.руб. | P8: Доля расходов, % (от суммы расходов по указанной статье)
D9: 1 | E9: 2 | G9: 3 | H9: 4 | I9: 5 | K9: 6 | L9: 7 | M9: 8 | N9: 9 | O9: 10 | P9: 11
E10: Расходы на ремонт (текущий и капитальный) основных производственных средств итого. Из них товары и услуги, приобретенные у организаций, сумма оплаты услуг которых превышает 20% суммы расходов по статье | O10: =List02_costs_OPS -> 0
D11: 0
E12: Добавить поставщика
D14: * | E14: Раскрывается не позднее 30 дней со дня сдачи годового бухгалтерского баланса в налоговые органы.

Sheet Потр. характеристики
D5: Информация об основных потребительских характеристиках регулируемых товаров и услуг *
D6: ПУБЛИЧНОЕ АКЦИОНЕРНОЕ ОБЩЕСТВО "ВТОРАЯ ГЕНЕРИРУЮЩАЯ КОМПАНИЯ ОПТОВОГО РЫНКА ЭЛЕКТРОЭНЕРГИИ"
D8: № п/п | E8: Информация, подлежащая раскрытию | F8: Значение | G8: Ссылки на документы
D9: 1 | E9: 2 | F9: 3 | G9: 4
D10: 1 | E10: Количество аварий на тепловых сетях (единиц на км) **
D11: 2 | E11: Количество аварий на источниках тепловой энергии (единиц на источник)**
D12: 3 | E12: Показатели надежности и качества, установленные в соответствии с законодательством РФ
D13: 4 | E13: Доля числа исполненных в срок договоров о подключении (технологическом присоединении), %
D14: 5 | E14: Средняя продолжительность рассмотрения заявок на подключение (технологическое присоединение), дней
D15: 6 | E15: Комментарии
D17: * | E17: Раскрывается не позднее 30 дней со дня сдачи годового бухгалтерского баланса в налоговые органы.
D18: ** | E18: Учитывать любое нарушение системы.

Sheet Инвестиции
E5: Информация об инвестиционных программах *
E6: ПУБЛИЧНОЕ АКЦИОНЕРНОЕ ОБЩЕСТВО "ВТОРАЯ ГЕНЕРИРУЮЩАЯ КОМПАНИЯ ОПТОВОГО РЫНКА ЭЛЕКТРОЭНЕРГИИ"
J8: О | K8: О
E9: № п/п | F9: Наименование показателя | G9: Единица измерения | H9: Значение | I9: ="Мероприятие " & I10-4 -> Мероприятие 0 | J9: ="Мероприятие " & J10-4 -> Мероприятие 1 | K9: ="Мероприятие " & K10-4 -> Мероприятие 2 | L9: Добавить мероприятие
E10: 1 | F10: 2 | G10: 3 | H10: 4 | I10: 4 | J10: 5 | K10: 6
E11: 1 | F11: Наименование инвестиционной программы (мероприятия) | G11: x | H11: ИПР филиала ПАО "ОГК-2" Рязанская ГРЭС | J11: Техническое перевооружение системы газопотребления блока №1 | K11: Техническое перевооружение пусковой котельной с установкой паровых котлов
E12: 2 | F12: Дата утверждения инвестиционной программы | G12: x | H12: 27.03.2017 | I12: x | J12: x | K12: x
E13: 3 | F13: Цели инвестиционной программы | G13: x | H13: уменьшение издержек на производство | I13: x | J13: x | K13: x
E14: 4 | F14: Наименование органа исполнительной власти субъекта РФ, утвердившего инвестиционную программу | G14: x | H14: ИПР утверждена в составе БП Общества ПАО "ОГК-2" | I14: x | J14: x | K14: x
E15: 5 | F15: Наименование органа местного самоуправления, согласовавшего инвестиционную программу | G15: x | H15: ИПР утверждена в составе БП Общества ПАО "ОГК-2" | I15: x | J15: x | K15: x
E16: 6 | F16: Срок начала реализации инвестиционной программы (мероприятия) | G16: x | H16: 01.01.2017 | J16: 01.07.2015 | K16: 01.01.2016
E17: 7 | F17: Срок окончания реализации инвестиционной программы (мероприятия) | G17: x | H17: 31.12.2017 | J17: 31.10.2018 | K17: 31.12.2017
E18: 8 | F18: Потребности в финансовых средствах, необходимых для реализации инвестиционной программы на год, в том числе по источникам финансирования | G18: тыс руб | H18: =SUM(I18:L18) -> 30746.74 | I18: =SUMIF(List06_flag_year,"y",I19:I25) -> 0 | J18: =SUMIF(List06_flag_year,"y",J19:J25) -> 6641.72 | K18: =SUMIF(List06_flag_year,"y",K19:K25) -> 24105.02
A19: 8.0 | E19: =A19 -> 8.0 | G19: тыс руб | H19: =SUM(H20:H21) -> 0 | I19: =SUM(I20:I21) -> 0 | J19: =SUM(J20:J21) -> 0 | K19: =SUM(K20:K21) -> 0 | L19: y
B20: 1 | E20: =A19&"."&B20 -> 8.0.1 | G20: тыс руб | H20: =SUM(I20:L20) -> 0
F21: Добавить источники
A22: 8.1 | C22: О | E22: =A22 -> 8.1 | F22: 2017 | G22: тыс руб | H22: =SUM(H23:H24) -> 30746.74 | I22: =SUM(I23:I24) -> 0 | J22: =SUM(J23:J24) -> 6641.72 | K22: =SUM(K23:K24) -> 24105.02 | L22: y
B23: 1 | E23: =A22&"."&B23 -> 8.1.1 | F23: амортизация | G23: тыс руб | H23: =SUM(I23:L23) -> 30746.74 | J23: 6641.72 | K23: 24105.02
F24: Добавить источники
F25: Добавить год
E26: 9 | F26: Целевые показатели инвестиционной программы | H26: x | I26: x | J26: x | K26: x
E27: 9.1 | F27: Срок окупаемости | G27: лет | H27: x | I27: x | J27: x | K27: x
E28: 9.1.1 | F28: Факт | G28: лет | H28: 0 | J28: 0 | K28: 0
E29: 9.1.2 | F29: План | G29: лет | H29: 0 | J29: 0 | K29: 0
E30: 9.2 | F30: Перебои в снабжении потребителей | G30: часов на потребителя | H30: x | I30: x | J30: x | K30: x
E31: 9.2.1 | F31: Факт | G31: часов на потребителя | H31: 0 | J31: 0 | K31: 0
E32: 9.2.2 | F32: План | G32: часов на потребителя | H32: 0 | J32: 0 | K32: 0
E33: 9.3 | F33: Продолжительность (бесперебойность) поставки товаров и услуг | G33: час/день | H33: x | I33: x | J33: x | K33: x
E34: 9.3.1 | F34: Факт | G34: час/день | H34: 0 | J34: 0 | K34: 0
E35: 9.3.2 | F35: План | G35: час/день | H35: 0 | J35: 0 | K35: 0
E36: 9.4 | F36: Уровень потерь и неучтенного потребления | G36: % | H36: x | I36: x | J36: x | K36: x
E37: 9.4.1 | F37: Факт | G37: % | H37: 0 | J37: 0 | K37: 0
E38: 9.4.2 | F38: План | G38: % | H38: 0 | J38: 0 | K38: 0
E39: 9.5 | F39: Коэффициент потерь | G39: Гкал/км | H39: x | I39: x | J39: x | K39: x
E40: 9.5.1 | F40: Факт | G40: Гкал/км | H40: 0 | J40: 0 | K40: 0
E41: 9.5.2 | F41: План | G41: Гкал/км | H41: 0 | J41: 0 | K41: 0
E42: 9.6 | F42: Износ систем коммунальной инфраструктуры | G42: % | H42: x | I42: x | J42: x | K42: x
E43: 9.6.1 | F43: Факт | G43: % | H43: 0 | J43: 0 | K43: 0
E44: 9.6.2 | F44: План | G44: % | H44: 0 | J44: 0 | K44: 0
E45: 9.7 | F45: Износ оборудования производства (котлы) | G45: % | H45: x | I45: x | J45: x | K45: x
E46: 9.7.1 | F46: Факт | G46: % | H46: 0 | J46: 0 | K46: 0
E47: 9.7.2 | F47: План | G47: % | H47: 0 | J47: 0 | K47: 0
E48: 9.8 | F48: Износ оборудования передачи тепловой энергии (сети) | G48: % | H48: x | I48: x | J48: x | K48: x
E49: 9.8.1 | F49: Факт | G49: % | H49: 0 | J49: 0 | K49: 0
E50: 9.8.2 | F50: План | G50: % | H50: 0 | J50: 0 | K50: 0
E51: 9.9 | F51: Удельный вес сетей, нуждающихся в замене | G51: % | H51: x | I51: x | J51: x | K51: x
E52: 9.9.1 | F52: Факт | G52: % | H52: 0 | J52: 0 | K52: 0
E53: 9.9.2 | F53: План | G53: % | H53: 0 | J53: 0 | K53: 0
E54: 9.10 | F54: Обеспеченность потребления товаров и услуг приборами учета | G54: % | H54: x | I54: x | J54: x | K54: x
E55: 9.10.1 | F55: Факт | G55: % | H55: 0 | J55: 0 | K55: 0
E56: 9.10.2 | F56: План | G56: % | H56: 0 | J56: 0 | K56: 0
E57: 9.11 | F57: Расход топлива на 1 Гкал | G57: т усл.топл/Гкал | H57: x | I57: x | J57: x | K57: x
E58: 9.11.1 | F58: Факт | G58: т усл.топл/Гкал | H58: 0 | J58: 0 | K58: 0
E59: 9.11.2 | F59: План | G59: т усл.топл/Гкал | H59: 0 | J59: 0 | K59: 0
E60: 9.12 | F60: Расход электроэнергии на выработку 1 Гкал | G60: кВт.ч/Гкал | H60: x | I60: x | J60: x | K60: x
E61: 9.12.1 | F61: Факт | G61: кВт.ч/Гкал | H61: 0 | J61: 0 | K61: 0
E62: 9.12.2 | F62: План | G62: кВт.ч/Гкал | H62: 0 | J62: 0 | K62: 0
E63: 9.13 | F63: Расход электроэнергии на передачу 1 Гкал | G63: кВт.ч/Гкал | H63: x | I63: x | J63: x | K63: x
E64: 9.13.1 | F64: Факт | G64: кВт.ч/Гкал | H64: 0 | J64: 0 | K64: 0
E65: 9.13.2 | F65: План | G65: кВт.ч/Гкал | H65: 0 | J65: 0 | K65: 0
E66: 9.14 | F66: Количество аварий (с учетом котельных) | G66: ед | H66: x | I66: x | J66: x | K66: x
E67: 9.14.1 | F67: Факт | G67: ед | H67: 0 | J67: 0 | K67: 0
E68: 9.14.2 | F68: План | G68: ед | H68: 0 | J68: 0 | K68: 0
E69: 9.15 | F69: Количество аварий на 1 км тепловых сетей | G69: ед | H69: x | I69: x | J69: x | K69: x
E70: 9.15.1 | F70: Факт | G70: ед | H70: 0 | J70: 0 | K70: 0
E71: 9.15.2 | F71: План | G71: ед | H71: 0 | J71: 0 | K71: 0
E72: 9.16 | F72: Производительность труда на 1 человека | G72: тыс руб/чел | H72: x | I72: x | J72: x | K72: x
E73: 9.16.1 | F73: Факт | G73: тыс руб/чел | H73: 0 | J73: 0 | K73: 0
E74: 9.16.2 | F74: План | G74: тыс руб/чел | H74: 0 | J74: 0 | K74: 0
A75: 9.16 | E75: =A75 -> 9.16 | H75: x | I75: x | J75: x | K75: x
E76: =A75&".1" -> 9.16.1 | F76: Факт | G76: =IF(G75="","x",G75) -> x
E77: =A75&".2" -> 9.16.2 | F77: План | G77: =IF(G75="","x",G75) -> x
F78: Добавить показатель
E79: 10 | F79: Использование инвестиционных средств за отчетный год | G79: тыс руб | H79: x | I79: x | J79: x | K79: x
A80: 10.0 | E80: =A80 -> 10.0 | F80: Всего, в том числе по источникам финансирования: | G80: тыс руб | H80: =SUM(I80:L80) -> 63424.855 | I80: =SUM(I81:I84) -> 0 | J80: =SUM(J81:J84) -> 7837.23 | K80: =SUM(K81:K84) -> 55587.625
E81: =A80&".1" -> 10.0.1 | F81: I квартал | G81: тыс руб | H81: =SUM(I81:L81) -> 21394.68 | I81: =SUMIF($F$85:$F$95,$F81,I$85:I$95) -> 0 | J81: 3562.36 | K81: 17832.32
E82: =A80&".2" -> 10.0.2 | F82: II квартал | G82: тыс руб | H82: =SUM(I82:L82) -> 26306.535 | I82: 0 | J82: 175.89 | K82: 26130.645
E83: =A80&".3" -> 10.0.3 | F83: III квартал | G83: тыс руб | H83: =SUM(I83:L83) -> 9905.19 | I83: 0 | J83: 72.86 | K83: 9832.33
E84: =A80&".4" -> 10.0.4 | F84: IV квартал | G84: тыс руб | H84: =SUM(I84:L84) -> 5818.45 | I84: 0 | J84: 4026.12 | K84: 1792.33
A85: 10.0 | E85: =A85 -> 10.0 | G85: тыс руб | H85: =SUM(H86:H89) -> 0 | I85: =SUM(I86:I89) -> 0 | J85: =SUM(J86:J89) -> 0 | K85: =SUM(K86:K89) -> 0
E86: =A85&".1" -> 10.0.1 | F86: I квартал | G86: тыс руб | H86: =SUM(I86:L86) -> 0
E87: =A85&".2" -> 10.0.2 | F87: II квартал | G87: тыс руб | H87: =SUM(I87:L87) -> 0
E88: =A85&".3" -> 10.0.3 | F88: III квартал | G88: тыс руб | H88: =SUM(I88:L88) -> 0
E89: =A85&".4" -> 10.0.4 | F89: IV квартал | G89: тыс руб | H89: =SUM(I89:L89) -> 0
A90: 10.1 | D90: О | E90: =A90 -> 10.1 | F90: амортизация | G90: тыс руб | H90: =SUM(H91:H94) -> 63424.855 | I90: =SUM(I91:I94) -> 0 | J90: =SUM(J91:J94) -> 7837.23 | K90: =SUM(K91:K94) -> 55587.625
E91: =A90&".1" -> 10.1.1 | F91: I квартал | G91: тыс руб | H91: =SUM(I91:L91) -> 21394.68 | J91: 3562.36 | K91: 17832.32
E92: =A90&".2" -> 10.1.2 | F92: II квартал | G92: тыс руб | H92: =SUM(I92:L92) -> 26306.535 | J92: 175.89 | K92: 26130.645
E93: =A90&".3" -> 10.1.3 | F93: III квартал | G93: тыс руб | H93: =SUM(I93:L93) -> 9905.19 | J93: 72.86 | K93: 9832.33
E94: =A90&".4" -> 10.1.4 | F94: IV квартал | G94: тыс руб | H94: =SUM(I94:L94) -> 5818.45 | J94: 4026.12 | K94: 1792.33
F95: Добавить источники
E97: * | F97: Раскрывается не позднее 30 дней со дня сдачи годового бухгалтерского баланса в налоговые органы.

Sheet Инвестиции исправления
D5: Внесение изменений в инвестиционную программу *
D6: ПУБЛИЧНОЕ АКЦИОНЕРНОЕ ОБЩЕСТВО "ВТОРАЯ ГЕНЕРИРУЮЩАЯ КОМПАНИЯ ОПТОВОГО РЫНКА ЭЛЕКТРОЭНЕРГИИ"
D8: № п/п | E8: Дата внесения изменений | F8: Внесенные изменения
D9: 1 | E9: 2 | F9: 3
D10: 0
E11: Добавить строку
D13: * | E13: Раскрывается регулируемой организацией в течение 10 календарных дней со дня принятия органом исполнительной власти субъекта Российской Федерации решения о внесении изменений в инвестиционную программу

Sheet Ссылки на публикации
D5: Ссылки на публикации
D6: ПУБЛИЧНОЕ АКЦИОНЕРНОЕ ОБЩЕСТВО "ВТОРАЯ ГЕНЕРИРУЮЩАЯ КОМПАНИЯ ОПТОВОГО РЫНКА ЭЛЕКТРОЭНЕРГИИ"
D9: № п/п | E9: Содержание | F9: Наименование источника публикации | G9: Дата размещения информации | H9: Номер печатного издания | I9: Дата печатного издания | J9: Ссылка на PDF копии издания | K9: Адрес страницы официального сайта организации в сети интернет, на которой размещена раскрываемая информация
D10: 1 | E10: 2 | F10: 3 | G10: 4 | H10: 5 | I10: 6 | J10: 7 | K10: 8
A11: 1 | D11: =A11 -> 1 | E11: Информация об основных показателях финансово-хозяйственной деятельности регулируемой организации, включая структуру основных производственных затрат (в части регулируемой деятельности) (п.19 Постановления Правительства Российской Федерации от 05 июля 2013 г. N 570 "О стандартах раскрытия информации теплоснабжающими, теплосетевыми организациями и органами регулирования")
D12: =A11&".1" -> 1.1 | E12: Сайт организации в сети Интернет | F12: ОГК-2 | G12: 30.03.2018 | H12: x | I12: x | J12: x | K12: http://www.ogk2.ru/rus/si/infodisclosure/disclosureinstand/
A13: 2 | D13: =A13 -> 2 | E13: Информация об основных потребительских характеристиках регулируемых товаров и услуг, оказываемых регулируемой организацией (п.20 Постановления Правительства Российской Федерации от 05 июля 2013 г. N 570 "О стандартах раскрытия информации теплоснабжающими, теплосетевыми организациями и органами регулирования")
D14: =A13&".1" -> 2.1 | E14: Сайт организации в сети Интернет | F14: ОГК-2 | G14: 30.03.2018 | H14: x | I14: x | J14: x | K14: http://www.ogk2.ru/rus/si/infodisclosure/disclosureinstand/
D15: =A13&".2" -> 2.2 | E15: Печатное издание | K15: x
A16: 3 | D16: =A16 -> 3 | E16: Информация об инвестиционных программах регулируемой организации (п.21 Постановления Правительства Российской Федерации от 05 июля 2013 г. N 570 "О стандартах раскрытия информации теплоснабжающими, теплосетевыми организациями и органами регулирования")
D17: =A16&".1" -> 3.1 | E17: Сайт организации в сети Интернет | F17: ОГК-2 | G17: 30.03.2018 | H17: x | I17: x | J17: x | K17: http://www.ogk2.ru/rus/si/infodisclosure/disclosureinstand/
E18: Добавить

Sheet Комментарии
D7: Комментарии
D8: ПУБЛИЧНОЕ АКЦИОНЕРНОЕ ОБЩЕСТВО "ВТОРАЯ ГЕНЕРИРУЮЩАЯ КОМПАНИЯ ОПТОВОГО РЫНКА ЭЛЕКТРОЭНЕРГИИ"
D10: № п/п | E10: Комментарий
D11: 1 | E11: 2
D12: 0
E13: Добавить

Sheet Проверка
B2: Результат проверки
B4: Ссылка1 | C4: Ссылка2 | D4: Причина | E4: Статус

Sheet AllSheetsInThisWorkbook (hidden)
A1: Расчетные листы | B1: Скрытые листы
A2: Инструкция | B2: AllSheetsInThisWorkbook
A3: Лог обновления | B3: TEHSHEET
A4: Титульный | B4: et_union_hor
A5: Список МО | B5: et_union_vert
A6: Показатели (факт) | B6: modInfo
A7: Показатели (2) | B7: modRegion
A8: Потр. характеристики | B8: modReestr
A9: Инвестиции | B9: modfrmSelectData
A10: Инвестиции исправления | B10: modfrmReestr
A11: Ссылки на публикации | B11: modUpdTemplMain
A12: Комментарии | B12: REESTR_ORG
A13: Проверка | B13: modClassifierValidate
B14: modProv
B15: modHyp
B16: modList00
B17: modList01
B18: modList02
B19: modList03
B20: modList04
B21: modList05
B22: modList06
B23: modList07
B24: modfrmDateChoose
B25: modComm
B26: modThisWorkbook
B27: REESTR_MO
B28: modfrmReestrMR
B29: modfrmCheckUpdates
B30: CopyList

Sheet TEHSHEET (hidden)
A1: REGION | B1: Список с видами деятельности | D1: year_list | E1: logical | F1: Месяц (MONTH) | G1: Квартал (QUARTER) | H1: Месяц (kind_of_publication) | I1: Режим налогообложения /kind_of_NDS/ | J1: Вид деятельности, на которую установлен тариф /kind_of_activity/ | K1: Вид услуги, на которую установлен тариф /kind_of_service_WARM/ | L1: Номер СЦХВ(СЦВО) /SKI_number/ | M1: Виды топлива /kind_of_fuels/ | O1: цель инвестиционной программы /kind_of_purchase_method/ | P1: Источники финансирования /source_of_funding/ | Q1: цель инвестиционной программы /objective_of_IPR/ | T1: Рабочие диапазоны
A2: Алтайский край | B2: kind_of_activity_01 | D2: 2013 | E2: да | F2: январь | G2: I квартал | H2: На официальном сайте организации | I2: общий | J2: kind_of_activity_01 | K2: Производство | L2: 1 | M2: газ природный по регулируемой цене | N2: тыс м3 | O2: торги/аукционы | P2: кредиты банков | Q2: автоматизация (с уменьшением штата) | R2: FALSE | T2: TRUE
A3: Амурская область | D3: 2014 | E3: нет | F3: февраль | G3: II квартал | H3: На сайте регулирующего органа | I3: общий с учетом освобождения от уплаты НДС | J3: Комбинированная выработка | K3: Передача | L3: 2 | M3: газ природный по нерегулируемой цене | N3: тыс м3 | O3: прямые договора без торгов | P3: кредиты иностранных банков | Q3: уменьшение удельных затрат (повышение КПД) | R3: FALSE
A4: Архангельская область | D4: 2015 | F4: март | G4: III квартал | I4: специальный (упрощенная система налогообложения, система налогообложения для сельскохозяйственных товаропроизводителей) | J4: Некомбинированная выработка | K4: Сбыт | L4: 3 | M4: газ сжиженный | N4: кг | O4: прочее | P4: заемные ср-ва др. организаций | Q4: уменьшение издержек на производство | R4: TRUE
A5: Астраханская область | D5: 2016 | E5: logical_two | F5: апрель | G5: IV квартал | J5: Нет производства т/э | L5: 4 | M5: газовый конденсат | N5: тонны | P5: федеральный бюджет | Q5: снижение аварийности | R5: FALSE
A6: Белгородская область | D6: 2017 | E6: есть | F6: май | I6: НДС для общего режима налогообложения /kind_of_NDS_tariff/ | J6: Смешанное производство | L6: 5 | M6: гшз | N6: тонны | P6: бюджет субъекта РФ | Q6: прочее | R6: FALSE
A7: Брянская область | E7: отсутствует | F7: июнь | I7: тариф указан с НДС для плательщиков НДС | L7: 6 | M7: мазут | N7: тонны | P7: бюджет муниципального образования
A8: Владимирская область | F8: июль | I8: тариф указан без НДС для плательщиков НДС | J8: kind_of_activity_02 | L8: 7 | M8: нефть | N8: тонны | P8: ср-ва внебюджетных фондов
A9: Волгоградская область | F9: август | J9: Комбинированная выработка | L9: 8 | M9: дизельное топливо | N9: тонны | P9: прибыль, направляемая на инвестиции
A10: Вологодская область | F10: сентябрь | I10: НДС для прочих режимов налогообложения /kind_of_NDS_tariff_etc/ | J10: Некомбинированная выработка | L10: 9 | M10: уголь бурый | N10: тонны | P10: амортизация
A11: Воронежская область | F11: октябрь | I11: тариф для организаций не являющихся плательщиками НДС | J11: Смешанное производство | L11: 10 | M11: уголь каменный | N11: тонны | P11: инвестиционная надбавка к тарифу
A12: г.Байконур | F12: ноябрь | J12: Передача | L12: 11 | M12: торф | N12: тонны | P12: плата за подключение
A13: г. Москва | F13: декабрь | J13: Сбыт | L13: 12 | M13: дрова | N13: м3 | P13: прочие средства
A14: г.Санкт-Петербург | L14: 13 | M14: опил | N14: м3
A15: Еврейская автономная область | J15: kind_of_activity_03 | L15: 14 | M15: отходы березовые | N15: м3
A16: Забайкальский край | J16: Комбинированная выработка | L16: 15 | M16: отходы осиновые | N16: м3
A17: Ивановская область | J17: Некомбинированная выработка | L17: 16 | M17: печное топливо | N17: тонны
A18: Иркутская область | J18: Смешанное производство | L18: 17 | M18: пилеты | N18: тонны
A19: Кабардино-Балкарская республика | J19: Передача | L19: 18 | M19: смола | N19: тонны
A20: Калининградская область | J20: Сбыт | L20: 19 | M20: щепа | N20: м3
A21: Калужская область | J21: Производство (некомбинированная выработка)+сбыт | L21: 20 | M21: горючий сланец | N21: тонны
A22: Камчатский край | J22: Передача+сбыт | M22: керосин | N22: тонны
A23: Карачаево-Черкесская республика | J23: Производство (комбинированная выработка)+сбыт | M23: кислородно-водородная смесь | N23: тыс м3
A24: Кемеровская область | J24: Производство (некомбинированная выработка)+передача | M24: электроэнергия (НН) | N24: тыс кВт.ч
A25: Кировская область | J25: Производство (комбинированная выработка)+передача | M25: электроэнергия (СН1) | N25: тыс кВт.ч
A26: Костромская область | J26: Производство (комбинированная выработка)+передача+сбыт | M26: электроэнергия (СН2) | N26: тыс кВт.ч
A27: Краснодарский край | J27: Производство (некомбинированная выработка)+передача+сбыт | M27: электроэнергия (ВН) | N27: тыс кВт.ч
A28: Красноярский край | J28: Смешанное производство+сбыт | M28: мощность | N28: тыс кВт
A29: Курганская область | J29: Смешанное производство+передача | M29: прочее
A30: Курская область | J30: Смешанное производство+передача+сбыт
A31: Ленинградская область
A32: Липецкая область
A33: Магаданская область
A34: Московская область
A35: Мурманская область
A36: Ненецкий автономный округ
A37: Нижегородская область
A38: Новгородская область
A39: Новосибирская область
A40: Омская область | B40: kind_of_activity_02
A41: Оренбургская область
A42: Орловская область
A43: Пензенская область
A44: Пермский край
A45: Приморский край
A46: Псковская область
A47: Республика Адыгея
A48: Республика Алтай
A49: Республика Башкортостан
A50: Республика Бурятия
A51: Республика Дагестан
A52: Республика Ингушетия
A53: Республика Калмыкия
A54: Республика Карелия
A55: Республика Коми
A56: Республика Марий Эл
A57: Республика Мордовия
A58: Республика Саха (Якутия)
A59: Республика Северная Осетия-Алания
A60: Республика Татарстан
A61: Республика Тыва
A62: Республика Хакасия
A63: Ростовская область
A64: Рязанская область
A65: Самарская область
A66: Саратовская область
A67: Сахалинская область
A68: Свердловская область
A69: Смоленская область
A70: Ставропольский край
A71: Тамбовская область
A72: Тверская область
A73: Томская область
A74: Тульская область
A75: Тюменская область
A76: Удмуртская республика
A77: Ульяновская область | B77: kind_of_activity_02
A78: Хабаровский край
A79: Ханты-Мансийский автономный округ | B79: kind_of_activity_02
A80: Челябинская область
A81: Чеченская республика
A82: Чувашская республика
A83: Чукотский автономный округ
A84: Ямало-Ненецкий автономный округ
A85: Ярославская область

Sheet et_union_hor (hidden)
A2: et_List01 | B2: et_List01_1
F4: 1
G5: Добавить МО
A8: et_Comm
A13: et_List03
A16: 4 | D16: =A16 -> 4
D17: =A16&".1" -> 4.1 | E17: Сайт организации в сети Интернет | H17: x | I17: x | J17: x
D18: =A16&".2" -> 4.2 | E18: Печатное издание | K18: x
A22: edit_List03_ipr_pub
A24: 3 | D24: =A24 -> 3 | E24: Информация об инвестиционных программах регулируемой организации (п.21 Постановления Правительства Российской Федерации от 05 июля 2013 г. N 570 "О стандартах раскрытия информации теплоснабжающими, теплосетевыми организациями и органами регулирования")
D25: =A24&".1" -> 3.1 | E25: Сайт организации в сети Интернет | H25: x | I25: x | J25: x
A28: et_List02_1
F30: тыс руб
A32: et_List02_2
D34: =A34 -> 0 | F34: x | G34: =G35*G36+G37 -> 0 | H34: p
D35: =A34&".1" -> .1 | E35: Объем
D36: =A34&".2" -> .2 | E36: Стоимость за единицу объема | F36: тыс руб
D37: =A34&".3" -> .3 | E37: Стоимость доставки | F37: тыс руб
D38: =A34&".4" -> .4 | E38: Способ приобретения | F38: x
A40: et_List02_3
F42: Гкал/ч
A44: et_List02_4
F46: кг усл. топл/Гкал
A48: et_List02_5
F50: тыс руб
A53: et_List04_1 | B53: et_List04_2 | C53: et_List04_3
D55: 1 | H55: Итого по поставщику | O55: =SUM(O56:O58) -> 0 | P55: =nerr(O55/List02_costs_OPS)*100 -> 0
G56: 1 | K56: 1
L57: Добавить товар/услугу
H58: Добавить способ
A61: et_List07_1

Sheet et_union_vert (hidden)

Sheet modInfo (hidden)
B1: Титульный
B2: Для выбора того или иного источника публикации выполните двойной щелчок по синей ячейке напротив соответствующего источника. ВНИМАНИЕ! Если Вы снимаете галочку с пункта, то будут скрыты и очищены соответствующие строки на листе "Ссылки на публикации"! Опубликование перечисленных в шаблоне показателей на сайте организации в сети Интернет и в печатных изданиях не обязательно, если данный шаблон предоставлен по системе ЕИАС (региональный сегмент).
B3: Обязательное опубликование на официальном сайте органа исполнительной власти субъекта Российской Федерации в области государственного регулирования цен (тарифов), и (или) на официальном сайте органа местного самоуправления поселения или городского округа в случае их наделения в соответствии с законом субъекта Российской Федерации полномочиями по государственному регулированию цен (тарифов) предусмотрено пунктом 3 (а) постановления Правительства N 570 от 05.07.2013
B4: Задайте период регулирования, выбрав даты начала и окончания очередного периода регулирования из календаря (иконка справа от указанной ячейки), либо введите дату непосредственно в ячейку в формате - 'ДД.ММ.ГГГГ'
B5: Шаблон заполняется раздельно по каждому виду тарифа
B6: В зависимости от указанного вида деятельности будут доступны для заполнения поля 'Производство', 'Передача' и 'Сбыт'
B7: Ссылки на публикации
B8: Вводите адрес сайта, не нарушая цвет ячейки /если копируете гиперссылку из браузера, то выполните двойной щелчок по ячейке и только после этого можете вставить скопированный элемент/
B9: Материалы (документы) необходимо загружать с помощью "ЕИАС Мониторинг". Ссылка на инструкцию по загрузке материалов (документов) расположена на листе 'Инструкция' в п.'Методология заполнения'. Ввводите ссылку, не нарушая цвет ячейки /если копируете гиперссылку из браузера, то выполните двойной щелчок по ячейке и только после этого можете вставить скопированный элемент/.
B10: Если для какого-либо пункта графы 'Наименование источника (сайта или печатного издания)' информация не раскрывалась, то в соответствующем поле укажите - 'не раскрывалась'
B11: Список МО
B12: В случае, если тариф не дифференцируется по системам теплоснабжения, перечислите все муниципальные районы, в которых организация осуществляет услуги по передаче тепловой энергии
B13: В случае, если тариф не дифференцируется по системам теплоснабжения, перечислите все муниципальные образования, в которых организация осуществляет услуги по передаче тепловой энергии
B14: Признак дифференциации тарифа
B15: В случае, если тариф не дифференцируется по системам теплоснабжения, укажите '1'. Введите значение от 1 до 100, чтобы указать очередной условный порядковый номер системы теплоснабжения
B16: Потр. Характеристики
B17: Документы необходимо загружать с помощью "ЕИАС Мониторинг". Ссылка на инструкцию по загрузке документов расположена на листе 'Инструкция' в п.'Методология заполнения'. Ввводите ссылку, не нарушая цвет ячейки /если копируете гиперссылку из браузера, то выполните двойной щелчок по ячейке и только после этого можете вставить скопированный элемент/.

Sheet modRegion (hidden)

Sheet modReestr (hidden)

Sheet modfrmSelectData (hidden)

Sheet modfrmReestr (hidden)

Sheet modUpdTemplMain (hidden)

Sheet REESTR_ORG (hidden)
A1: № | B1: NSRF | C1: MR_NAME | D1: OKTMO_MR_NAME | E1: MO_NAME | F1: OKTMO_NAME | G1: RST_ORG_ID | H1: ORG_NAME | I1: INN_NAME | J1: KPP_NAME | K1: VDET_NAME
A2: 1 | B2: Алтайский край | C2: Город Барнаул | D2: 01701000 | E2: Город Барнаул | F2: 01701000 | G2: 26650386 | H2: АКГУП "Аптеки Алтая" | I2: 2221019606 | J2: 222101001 | K2: производство (некомбинированная выработка)+передача+сбыт | L2: WARM
A3: 2 | B3: Алтайский край | C3: Троицкий муниципальный район | D3: 01651000 | E3: Троицкий сельсовет | F3: 01651457 | G3: 26649792 | H3: АУ МО Троицкий район Алтайского края "Альтернатива" | I3: 2281005767 | J3: 228101001 | K3: производство (некомбинированная выработка)+передача+сбыт | L3: WARM
A4: 3 | B4: Алтайский край | C4: Город Алейск | D4: 01703000 | E4: Город Алейск | F4: 01703000 | G4: 26354804 | H4: В/Ч "Алейская КЭЧ" | I4: 2201005891 | J4: 220101001 | K4: производство (некомбинированная выработка)+передача+сбыт | L4: WARM
A5: 4 | B5: Алтайский край | C5: Город Алейск | D5: 01703000 | E5: Город Алейск | F5: 01703000 | G5: 26522203 | H5: ГУП "Алейское ДСУ 3" | I5: 2201006430 | J5: 220101001 | K5: производство (некомбинированная выработка)+передача+сбыт | L5: WARM
A6: 5 | B6: Алтайский край | C6: Город Барнаул | D6: 01701000 | E6: Город Барнаул | F6: 01701000 | G6: 26370836 | H6: ГУП "УПТК" | I6: 2202000695 | J6: 222201001 | K6: производство (некомбинированная выработка)+передача+сбыт | L6: WARM
A7: 6 | B7: Алтайский край | C7: Шипуновский муниципальный район | D7: 01659000 | E7: Шипуновский сельсовет | F7: 01659495 | G7: 26520187 | H7: ГУП "Шипуновское ДРСУ" | I7: 2289005977 | J7: 228901001 | K7: производство (некомбинированная выработка)+передача+сбыт | L7: WARM
A8: 7 | B8: Алтайский край | C8: Город Барнаул | D8: 01701000 | E8: Город Барнаул | F8: 01701000 | G8: 26654167 | H8: ГУП ДХ "БДСУ-4" | I8: 2202000688 | J8: 222101001 | K8: производство (некомбинированная выработка)+передача+сбыт | L8: WARM
A9: 8 | B9: Алтайский край | C9: Город Камень-на-Оби | D9: 01710000 | E9: Город Камень-на-Оби | F9: 01710000 | G9: 26654018 | H9: ГУП ДХ Алтайского края "Каменское ДРСУ" | I9: 2247004298 | J9: 224701001 | K9: производство (некомбинированная выработка)+передача+сбыт | L9: WARM
A10: 9 | B10: Алтайский край | C10: Город Алейск | D10: 01703000 | E10: Город Алейск | F10: 01703000 | G10: 26354852 | H10: ДХО Алейская ПМК ОАО "Барнаулводстрой" | I10: 2231002626 | J10: 220101001 | K10: производство (некомбинированная выработка)+передача+сбыт | L10: WARM
A11: 10 | B11: Алтайский край | C11: Город Алейск | D11: 01703000 | E11: Город Алейск | F11: 01703000 | G11: 26809588 | H11: ЗАО "Алейскзернопродукт" им. С.Н. Старовойтова | I11: 2201000766 | J11: 220101001 | K11: производство (некомбинированная выработка)+передача+сбыт | L11: WARM
A12: 11 | B12: Алтайский край | C12: Город Белокуриха | D12: 01704000 | E12: Город Белокуриха | F12: 01704000 | G12: 26774309 | H12: ЗАО "Инновация" | I12: 7731575575 | J12: 220345001 | K12: производство комбинированная выработка | L12: WARM
A13: 12 | B13: Алтайский край | C13: Павловский муниципальный район | D13: 01630000 | E13: Колыванский сельсовет | F13: 01630432 | G13: 26371105 | H13: ЗАО "Колыванское" | I13: 2261002207 | J13: 226101001 | K13: производство (некомбинированная выработка)+передача+сбыт | L13: WARM
A14: 13 | B14: Алтайский край | C14: Тальменский муниципальный район | D14: 01647000 | E14: Ларичихинский сельсовет | F14: 01647442 | G14: 26805260 | H14: ЗАО "Ларичихинский ЛПХ" Переименована от (ОАО "Ларичихинский леспромхоз") | I14: 2277002548 | J14: 227701001 | K14: производство (некомбинированная выработка)+передача+сбыт | L14: WARM
A15: 14 | B15: Алтайский край | C15: Завьяловский муниципальный район | D15: 01611000 | E15: Малиновский сельсовет | F15: 01611456 | G15: 27485296 | H15: ЗАО "Малиновское" | I15: 2224136731 | J15: 224101001 | K15: производство (некомбинированная выработка)+передача+сбыт | L15: WARM
A16: 15 | B16: Алтайский край | C16: Первомайский муниципальный район | D16: 01632000 | E16: Зудиловский сельсовет | F16: 01632434 | G16: 26649240 | H16: ЗАО "Санаторий Сосновый бор" | I16: 2263000950 | J16: 226301001 | K16: производство (некомбинированная выработка)+передача+сбыт | L16: WARM
A17: 16 | B17: Алтайский край | C17: Город Белокуриха | D17: 01704000 | E17: Город Белокуриха | F17: 01704000 | G17: 26354806 | H17: ЗАО "Теплоцентраль Белокуриха" | I17: 2203000225 | J17: 220301001 | K17: производство (некомбинированная выработка)+передача+сбыт | L17: WARM
A18: 17 | B18: Алтайский край | C18: Город Барнаул | D18: 01701000 | E18: Город Барнаул | F18: 01701000 | G18: 26354838 | H18: ЗАО БМК "Меланжист Алтая" | I18: 2224063466 | J18: 222401001 | K18: производство (некомбинированная выработка)+передача+сбыт | L18: WARM
A19: 18 | B19: Алтайский край | C19: Город Барнаул | D19: 01701000 | E19: Город Барнаул | F19: 01701000 | G19: 26354843 | H19: ЗАО ЗПК "Барнаульская мельница" | I19: 2225050477 | J19: 222501001 | K19: производство (некомбинированная выработка)+передача+сбыт | L19: WARM
A20: 19 | B20: Алтайский край | G20: 26835599 | H20: Западно-Сибирская Дирекция по тепловодоснабжению – структурное подразделение Центральной Дирекции по тепловодоснабжению – филиала ОАО «РЖД» (Омский регион. производ. участок, Новосибирский терр-ый участок, Алтайский терр-ый участок) | I20: 7708503727 | J20: 540745040 | K20: производство (некомбинированная выработка)+передача+сбыт | L20: WARM
A21: 20 | B21: Алтайский край | C21: Благовещенский муниципальный район | D21: 01605000 | E21: Леньковский сельсовет | F21: 01605436 | G21: 27831990 | H21: ИП "Маслак Е.М." | I21: 223500020898 | J21: отсутствует | K21: производство (некомбинированная выработка)+передача+сбыт | L21: WARM
A22: 21 | B22: Алтайский край | C22: Каменский муниципальный район | D22: 01616000 | E22: Рыбинский сельсовет | F22: 01616482 | G22: 26370931 | H22: ИП Матюшкин В.М. | I22: 222406272960 | J22: отсутствует | K22: производство (некомбинированная выработка)+передача+сбыт | L22: WARM
A23: 22 | B23: Алтайский край | C23: Каменский муниципальный район | D23: 01616000 | E23: Столбовский сельсовет | F23: 01616486 | G23: 26649050 | H23: ИП Михалёв В.Н. | I23: 224701045260 | J23: отсутствует | K23: производство (некомбинированная выработка)+передача+сбыт | L23: WARM
A24: 23 | B24: Алтайский край | C24: Угловский муниципальный район | D24: 01653000 | E24: Мирненский сельсовет | F24: 01653433 | G24: 27836075 | H24: ИП Решетов В.С. | I24: 228300654342 | J24: отсутствует | K24: производство (некомбинированная выработка)+передача+сбыт | L24: WARM
A25: 24 | B25: Алтайский край | C25: Табунский муниципальный район | D25: 01646000 | E25: Табунский сельсовет | F25: 01646466 | G25: 28424758 | H25: ИП Сальников Ю.М. | I25: 227600022127 | J25: отсутствует | K25: производство (некомбинированная выработка)+передача+сбыт | L25: WARM
A26: 25 | B26: Алтайский край | C26: Быстроистокский муниципальный район | D26: 01607000 | E26: Быстроистокский сельсовет | F26: 01607405 | G26: 26807661 | H26: ИП Стремяков В.А. | I26: 223700069989 | J26: отсутствует | K26: производство (некомбинированная выработка)+передача+сбыт | L26: WARM
A27: 26 | B27: Алтайский край | C27: Благовещенский муниципальный район | D27: 01605000 | E27: Яготинский сельсовет | F27: 01605494 | G27: 27669256 | H27: ИП глава Гербер П.П. | I27: 223500127390 | J27: отсутствует | K27: производство (некомбинированная выработка)+передача+сбыт | L27: WARM
A28: 27 | B28: Алтайский край | C28: Угловский муниципальный район | D28: 01653000 | E28: Озерно-Кузнецовский сельсовет | F28: 01653455 | G28: 28269268 | H28: ИП глава К(Ф)Х Березовских С.С. | I28: 228394437083 | J28: отсутствует | K28: производство (некомбинированная выработка)+передача+сбыт | L28: WARM
A29: 28 | B29: Алтайский край | C29: Первомайский муниципальный район | D29: 01632000 | E29: Зудиловский сельсовет | F29: 01632434 | G29: 27906860 | H29: ИП глава КФХ А.Л. Лизов | I29: 226300214475 | J29: отсутствует | K29: производство (некомбинированная выработка)+передача+сбыт | L29: WARM
A30: 29 | B30: Алтайский край | C30: Город Бийск | D30: 01705000 | E30: Город Бийск | F30: 01705000 | G30: 26652586 | H30: КГБОУ СПО "Бийский лесхоз-техникум" | I30: 2226008460 | J30: 220401001 | K30: производство (некомбинированная выработка)+передача+сбыт | L30: WARM
A31: 30 | B31: Алтайский край | C31: Город Барнаул | D31: 01701000 | E31: Город Барнаул | F31: 01701000 | G31: 26568896 | H31: КГСУСО "Центральный дом интернат для престарелых и инвалидов" | I31: 2225027559 | J31: 222501001 | K31: производство (некомбинированная выработка)+передача+сбыт | L31: WARM
A32: 31 | B32: Алтайский край | C32: Угловский муниципальный район | D32: 01653000 | E32: Тополинский сельсовет | F32: 01653480 | G32: 26521337 | H32: КФХ Бадеев Ю.А. | I32: 228301230836 | J32: отсутствует | K32: производство (некомбинированная выработка)+передача+сбыт | L32: WARM
A33: 32 | B33: Алтайский край | C33: Смоленский муниципальный район | D33: 01640000 | E33: Смоленский сельсовет | F33: 01640456 | G33: 26524207 | H33: МБУЗ "Смоленская ЦРБ" | I33: 2271003070 | J33: 227101001 | K33: производство (некомбинированная выработка)+передача+сбыт | L33: WARM
A34: 33 | B34: Алтайский край | C34: Петропавловский муниципальный район | D34: 01633000 | E34: Петропавловский сельсовет | F34: 01633457 | G34: 26354936 | H34: МП "МОКХ" | I34: 2264000159 | J34: 226401001 | K34: производство (некомбинированная выработка)+передача+сбыт | L34: WARM
A35: 34 | B35: Алтайский край | C35: Тальменский муниципальный район | D35: 01647000 | E35: Новоперуновский сельсовет | F35: 01647459 | G35: 26520291 | H35: МУКП "Новоперуновское" | I35: 2277011454 | J35: 227701001 | K35: производство (некомбинированная выработка)+передача+сбыт | L35: WARM
A36: 35 | B36: Алтайский край | C36: Поселок Сибирский (ЗАТО) | D36: 01755000 | E36: Поселок Сибирский (ЗАТО) | F36: 01755000 | G36: 26354996 | H36: МУМКП | I36: 2291000743 | J36: 229101001 | K36: производство (некомбинированная выработка)+передача+сбыт | L36: WARM
A37: 36 | B37: Алтайский край | C37: Бурлинский муниципальный район | D37: 01606000 | E37: Бурлинский сельсовет | F37: 01606411 | G37: 26524205 | H37: МУП "БТС" | I37: 2236004183 | J37: 223601001 | K37: производство (некомбинированная выработка)+передача+сбыт | L37: WARM
A38: 37 | B38: Алтайский край | C38: Алейский муниципальный район | D38: 01601000 | E38: Боровской сельсовет | F38: 01601417 | G38: 26568778 | H38: МУП "Боровское" | I38: 2231004912 | J38: 223101001 | K38: производство (некомбинированная выработка)+передача+сбыт | L38: WARM
A39: 38 | B39: Алтайский край | C39: Смоленский муниципальный район | D39: 01640000 | E39: Ануйский сельсовет | F39: 01640405 | G39: 26354955 | H39: МУП "Буревестник" | I39: 2271004933 | J39: 227101001 | K39: производство (некомбинированная выработка)+передача+сбыт | L39: WARM
A40: 39 | B40: Алтайский край | C40: Смоленский муниципальный район | D40: 01640000 | E40: Верх-Обской сельсовет | F40: 01640412 | G40: 26522864 | H40: МУП "Верх-Обское ЖКХ" | I40: 2271005535 | J40: 227101001 | K40: производство (некомбинированная выработка)+передача+сбыт | L40: WARM
A41: 40 | B41: Алтайский край | C41: Город Новоалтайск | D41: 01713000 | E41: Город Новоалтайск | F41: 01713000 | G41: 26370847 | H41: МУП "Водоканал" | I41: 2208001857 | J41: 220801001 | K41: производство (некомбинированная выработка)+передача+сбыт | L41: WARM
A42: 41 | B42: Алтайский край | C42: Усть-Пристанский муниципальный район | D42: 01655000 | E42: Вяткинский сельсовет | F42: 01655419 | G42: 26647961 | H42: МУП "Восток" | I42: 2285005060 | J42: 228501001 | K42: производство (некомбинированная выработка)+передача+сбыт | L42: WARM
A43: 42 | B43: Алтайский край | C43: Локтевский муниципальный район | D43: 01625000 | E43: Гилевский сельсовет | F43: 01625417 | G43: 28056432 | H43: МУП "Гилевский коммунальный участок" | I43: 2256007721 | J43: 225601001 | K43: производство (некомбинированная выработка)+передача+сбыт | L43: WARM
A44: 43 | B44: Алтайский край | C44: Рубцовский муниципальный район | D44: 01638000 | E44: Дальний сельсовет | F44: 01638422 | G44: 26649864 | H44: МУП "Дальний" | I44: 2269009437 | J44: 226901001 | K44: производство (некомбинированная выработка)+передача+сбыт | L44: WARM
A45: 44 | B45: Алтайский край | C45: Тальменский муниципальный район | D45: 01647000 | E45: Среднесибирский сельсовет | F45: 01647473 | G45: 26520281 | H45: МУП "Дом сервис" | I45: 2277011447 | J45: 227701001 | K45: производство (некомбинированная выработка)+передача+сбыт | L45: WARM
A46: 45 | B46: Алтайский край | C46: Третьяковский муниципальный район | D46: 01650000 | E46: Екатерининский сельсовет | F46: 01650411 | G46: 26354975 | H46: МУП "Екатерининское ЖКХ" | I46: 2280004224 | J46: 228001001 | K46: производство (некомбинированная выработка)+передача+сбыт | L46: WARM
A47: 46 | B47: Алтайский край | C47: Усть-Пристанский муниципальный район | D47: 01655000 | E47: Коробейниковский сельсовет | F47: 01655440 | G47: 26759732 | H47: МУП "Заречное" | I47: 2285005052 | J47: 228501001 | K47: производство (некомбинированная выработка)+передача+сбыт | L47: WARM
A48: 47 | B48: Алтайский край | C48: Усть-Пристанский муниципальный район | D48: 01655000 | E48: Усть-Пристанский сельсовет | F48: 01655480 | G48: 26647950 | H48: МУП "Исток" | I48: 2285005045 | J48: 228501001 | K48: производство (некомбинированная выработка)+передача+сбыт | L48: WARM
A49: 48 | B49: Алтайский край | C49: Усть-Пристанский муниципальный район | D49: 01655000 | E49: Усть-Пристанский сельсовет | F49: 01655480 | G49: 28426096 | H49: МУП "Исток+" | I49: 2285005180 | J49: 228501001 | K49: производство (некомбинированная выработка)+передача+сбыт | L49: WARM
A50: 49 | B50: Алтайский край | C50: Алейский муниципальный район | D50: 01601000 | E50: Кабаковский сельсовет | F50: 01601430 | G50: 26568845 | H50: МУП "Источник" | I50: 2231007279 | J50: 223101001 | K50: производство (некомбинированная выработка)+передача+сбыт | L50: WARM
A51: 50 | B51: Алтайский край | C51: Родинский муниципальный район | D51: 01636000 | E51: Зелёнолуговской сельсовет | F51: 01636410 | G51: 26649731 | H51: МУП "Источник" | I51: 2267005204 | J51: 226701001 | K51: производство (некомбинированная выработка)+передача+сбыт | L51: WARM
A52: 51 | B52: Алтайский край | C52: Калманский муниципальный район | D52: 01615000 | E52: Калманский сельсовет | F52: 01615427 | G52: 26801730 | H52: МУП "ККХ" | I52: 2246004560 | J52: 224601001 | K52: производство (некомбинированная выработка)+передача+сбыт | L52: WARM
A53: 52 | B53: Алтайский край | C53: Локтевский муниципальный район | D53: 01625000 | E53: Локтевский сельсовет | F53: 01625434 | G53: 28424050 | H53: МУП "КУ Локоть" | I53: 2256002709 | J53: 225601001 | K53: производство (некомбинированная выработка)+передача+сбыт | L53: WARM
A54: 53 | B54: Алтайский край | C54: Локтевский муниципальный район | D54: 01625000 | E54: Новомихайловский сельсовет | F54: 01625459 | G54: 28424044 | H54: МУП "КУ с. Сов. Путь" | I54: 2256006566 | J54: 225601001 | K54: производство (некомбинированная выработка)+передача+сбыт | L54: WARM
A55: 54 | B55: Алтайский край | C55: Усть-Калманский муниципальный район | D55: 01654000 | E55: Кабановский сельсовет | F55: 01654408 | G55: 26371289 | H55: МУП "Кабановское ЖКХ" | I55: 2284554050 | J55: 228401001 | K55: производство (некомбинированная выработка)+передача+сбыт | L55: WARM
A56: 55 | B56: Алтайский край | C56: Город Камень-на-Оби | D56: 01710000 | E56: Город Камень-на-Оби | F56: 01710000 | G56: 27249954 | H56: МУП "Каменские тепловые сети" | I56: 2207008899 | J56: 220701001 | K56: производство (некомбинированная выработка)+передача+сбыт | L56: WARM
A57: 56 | B57: Алтайский край | C57: Родинский муниципальный район | D57: 01636000 | E57: Каяушинский сельсовет | F57: 01636422 | G57: 26649267 | H57: МУП "Каяушинское" | I57: 2267005099 | J57: 226701001 | K57: производство (некомбинированная выработка)+передача+сбыт | L57: WARM
A58: 57 | B58: Алтайский край | C58: Алейский муниципальный район | D58: 01601000 | E58: Кировский сельсовет | F58: 01601438 | G58: 26568801 | H58: МУП "Кировское" | I58: 2231004670 | J58: 223101001 | K58: производство (некомбинированная выработка)+передача+сбыт | L58: WARM
A59: 58 | B59: Алтайский край | C59: Смоленский муниципальный район | D59: 01640000 | E59: Кировский сельсовет | F59: 01640423 | G59: 26522859 | H59: МУП "Кировское" | I59: 2271005528 | J59: 227101001 | K59: производство (некомбинированная выработка)+передача+сбыт | L59: WARM
A60: 59 | B60: Алтайский край | C60: Город Заринск | D60: 01706000 | E60: Город Заринск | F60: 01706000 | G60: 26653772 | H60: МУП "Коммунальное хозяйство" | I60: 2205010765 | J60: 220401001 | K60: производство (некомбинированная выработка)+передача+сбыт | L60: WARM
A61: 60 | B61: Алтайский край | C61: Тюменцевский муниципальный район | D61: 01652000 | E61: Заводской сельсовет | F61: 01652425 | G61: 26505912 | H61: МУП "Коммунальное хозяйство" | I61: 2282003949 | J61: 228201001 | K61: производство (некомбинированная выработка)+передача+сбыт | L61: WARM
A62: 61 | B62: Алтайский край | C62: Тюменцевский муниципальный район | D62: 01652000 | E62: Тюменцевский сельсовет | F62: 01652458 | G62: 26505910 | H62: МУП "Коммунальное хозяйство" | I62: 2282003963 | J62: 228201001 | K62: производство (некомбинированная выработка)+передача+сбыт | L62: WARM
A63: 62 | B63: Алтайский край | C63: Город Алейск | D63: 01703000 | E63: Город Алейск | F63: 01703000 | G63: 26354803 | H63: МУП "Коммунальщик" | I63: 2201001015 | J63: 220101001 | K63: производство (некомбинированная выработка)+передача+сбыт | L63: WARM
A64: 63 | B64: Алтайский край | C64: Косихинский муниципальный район | D64: 01618000 | E64: Налобихинский сельсовет | F64: 01618460 | G64: 26354890 | H64: МУП "Коммунальщик" | I64: 2249010272 | J64: 224901001 | K64: производство (некомбинированная выработка)+передача+сбыт | L64: WARM
A65: 64 | B65: Алтайский край | C65: Тогульский муниципальный район | D65: 01648000 | E65: Тогульский сельсовет | F65: 01648446 | G65: 26354970 | H65: МУП "Коммунальщик" | I65: 2278002526 | J65: 227801001 | K65: производство (некомбинированная выработка)+передача+сбыт | L65: WARM
A66: 65 | B66: Алтайский край | C66: Родинский муниципальный район | D66: 01636000 | E66: Кочкинский сельсовет | F66: 01636428 | G66: 26354943 | H66: МУП "Кочки" | I66: 2267004698 | J66: 226701001 | K66: производство (некомбинированная выработка)+передача+сбыт | L66: WARM
A67: 66 | B67: Алтайский край | C67: Кытмановский муниципальный район | D67: 01624000 | E67: Кытмановский сельсовет | F67: 01624423 | G67: 26354902 | H67: МУП "Кытмановские тепловые сети" | I67: 2255002720 | J67: 225501001 | K67: производство (некомбинированная выработка)+передача+сбыт | L67: WARM
A68: 67 | B68: Алтайский край | C68: Немецкий Национальный муниципальный район | D68: 01660000 | E68: Подсосновский сельсовет | F68: 01660435 | G68: 27594835 | H68: МУП "МОКХ Подсосновское" | I68: 2259007014 | J68: 225901001 | K68: производство (некомбинированная выработка)+передача+сбыт | L68: WARM
A69: 68 | B69: Алтайский край | C69: Немецкий Национальный муниципальный район | D69: 01660000 | E69: Гальбштадтский сельсовет | F69: 01660420 | G69: 28016978 | H69: МУП "МТК" | I69: 2259007198 | J69: 225901001 | K69: производство (некомбинированная выработка)+передача+сбыт | L69: WARM
A70: 69 | B70: Алтайский край | C70: Родинский муниципальный район | D70: 01636000 | E70: Мирненский сельсовет | F70: 01636434 | G70: 26648968 | H70: МУП "Мирный" | I70: 2267004962 | J70: 226701001 | K70: производство (некомбинированная выработка)+передача+сбыт | L70: WARM
A71: 70 | B71: Алтайский край | C71: Бурлинский муниципальный район | D71: 01606000 | E71: Михайловский сельсовет | F71: 01606422 | G71: 26370911 | H71: МУП "Михайловское жилищно-коммунальное хозяйство" | I71: 2236004017 | J71: 223601001 | K71: производство (некомбинированная выработка)+передача+сбыт | L71: WARM
A72: 71 | B72: Алтайский край | C72: Усть-Калманский муниципальный район | D72: 01654000 | E72: Новобурановский сельсовет | F72: 01654422 | G72: 26371285 | H72: МУП "Новобурановское ЖКХ" | I72: 2284007032 | J72: 228401001 | K72: производство (некомбинированная выработка)+передача+сбыт | L72: WARM
A73: 72 | B73: Алтайский край | C73: Усть-Калманский муниципальный район | D73: 01654000 | E73: Новокалманский сельсовет | F73: 01654433 | G73: 26371284 | H73: МУП "Новокалманское ЖКХ" | I73: 2284006952 | J73: 228401001 | K73: производство (некомбинированная выработка)+передача+сбыт | L73: WARM
A74: 73 | B74: Алтайский край | C74: Ключевский муниципальный район | D74: 01617000 | E74: Новополтавский сельсовет | F74: 01617435 | G74: 26649712 | H74: МУП "Новополтавское коммунальное хозяйство" | I74: 2248005375 | J74: 224801001 | K74: производство (некомбинированная выработка)+передача+сбыт | L74: WARM
A75: 74 | B75: Алтайский край | C75: Калманский муниципальный район | D75: 01615000 | E75: Новоромановский сельсовет | F75: 01615457 | G75: 27253188 | H75: МУП "Новоромановское жилищно-коммунальное хозяйство" | I75: 2246000452 | J75: 224601001 | K75: производство (некомбинированная выработка)+передача+сбыт | L75: WARM
A76: 75 | B76: Алтайский край | C76: Тальменский муниципальный район | D76: 01647000 | E76: Озерский сельсовет | F76: 01647466 | G76: 26520248 | H76: МУП "Озерские ТВС и К" | I76: 2277011415 | J76: 227701001 | K76: производство (некомбинированная выработка)+передача+сбыт | L76: WARM
A77: 76 | B77: Алтайский край | C77: Зональный муниципальный район | D77: 01629000 | E77: Октябрьский сельсовет | F77: 01629470 | G77: 26370970 | H77: МУП "Октябрьское" | I77: 2245003796 | J77: 224501001 | K77: производство (некомбинированная выработка)+передача+сбыт | L77: WARM
A78: 77 | B78: Алтайский край | C78: Угловский муниципальный район | D78: 01653000 | E78: Павловский сельсовет | F78: 01653466 | G78: 26371273 | H78: МУП "Павловка" | I78: 2283004624 | J78: 228301001 | K78: производство (некомбинированная выработка)+передача+сбыт | L78: WARM
A79: 78 | B79: Алтайский край | C79: Павловский муниципальный район | D79: 01630000 | E79: Павловский сельсовет | F79: 01630460 | G79: 27254792 | H79: МУП "Павловские коммунальные сети" | I79: 2261000560 | J79: 226101001 | K79: производство (некомбинированная выработка)+передача+сбыт | L79: WARM
A80: 79 | B80: Алтайский край | C80: Егорьевский муниципальный район | D80: 01609000 | E80: Первомайский сельсовет | F80: 01609444 | G80: 26809888 | H80: МУП "Первомайское" | I80: 2239004061 | J80: 223901001 | K80: производство (некомбинированная выработка)+передача+сбыт | L80: WARM
A81: 80 | B81: Алтайский край | C81: Родинский муниципальный район | D81: 01636000 | E81: Раздольненский сельсовет | F81: 01636451 | G81: 26649725 | H81: МУП "Раздольное" | I81: 2267005148 | J81: 226701001 | K81: производство (некомбинированная выработка)+передача+сбыт | L81: WARM
A82: 81 | B82: Алтайский край | C82: Алтайский муниципальный район | D82: 01602000 | E82: Россошинский сельсовет | F82: 01602468 | G82: 27688087 | H82: МУП "Россошинский коммунальщик" | I82: 2232005884 | J82: 223201001 | K82: производство (некомбинированная выработка)+передача+сбыт | L82: WARM
A83: 82 | B83: Алтайский край | C83: Город Рубцовск | D83: 01716000 | E83: Город Рубцовск | F83: 01716000 | G83: 26628787 | H83: МУП "Рубцовские тепловые сети" | I83: 2209023772 | J83: 220901001 | K83: производство (некомбинированная выработка)+передача+сбыт | L83: WARM
A84: 83 | B84: Алтайский край | C84: Город Рубцовск | D84: 01716000 | E84: Город Рубцовск | F84: 01716000 | G84: 26505250 | H84: МУП "Рубцовский тепловой комплекс" | I84: 2209036348 | J84: 220901001 | K84: производство (некомбинированная выработка) | L84: WARM
A85: 84 | B85: Алтайский край | C85: Город Рубцовск | D85: 01716000 | E85: Город Рубцовск | F85: 01716000 | G85: 26505250 | H85: МУП "Рубцовский тепловой комплекс" | I85: 2209036348 | J85: 220901001 | K85: производство комбинированная выработка | L85: WARM
A86: 85 | B86: Алтайский край | C86: Бийский муниципальный район | D86: 01604000 | E86: Светлоозерский сельсовет | F86: 01604480 | G86: 26354867 | H86: МУП "Светлоозерское" | I86: 2234011876 | J86: 223401001 | K86: производство (некомбинированная выработка)+передача+сбыт | L86: WARM
A87: 86 | B87: Алтайский край | C87: Родинский муниципальный район | D87: 01636000 | E87: Степновский сельсовет | F87: 01636468 | G87: 26371156 | H87: МУП "Сибиряк" | I87: 2267004722 | J87: 226701001 | K87: производство (некомбинированная выработка)+передача+сбыт | L87: WARM
A88: 87 | B88: Алтайский край | C88: Смоленский муниципальный район | D88: 01640000 | E88: Смоленский сельсовет | F88: 01640456 | G88: 26522854 | H88: МУП "Смоленское" | I88: 2271004549 | J88: 227101001 | K88: производство (некомбинированная выработка)+передача+сбыт | L88: WARM
A89: 88 | B89: Алтайский край | C89: Егорьевский муниципальный район | D89: 01609000 | E89: Сростинский сельсовет | F89: 01609455 | G89: 26809838 | H89: МУП "Сростинское" | I89: 2239004047 | J89: 223901001 | K89: производство (некомбинированная выработка)+передача+сбыт | L89: WARM
A90: 89 | B90: Алтайский край | C90: Павловский муниципальный район | D90: 01630000 | E90: Стуковский сельсовет | F90: 01630473 | G90: 28422485 | H90: МУП "Стуковские коммунальные сети" | I90: 2261001997 | J90: 226101001 | K90: производство (некомбинированная выработка)+передача+сбыт | L90: WARM
A91: 90 | B91: Алтайский край | C91: Алейский муниципальный район | D91: 01601000 | E91: Безголосовский сельсовет | F91: 01601408 | G91: 26568834 | H91: МУП "Темп" | I91: 2231004969 | J91: 223101001 | K91: производство (некомбинированная выработка)+передача+сбыт | L91: WARM
A92: 91 | B92: Алтайский край | C92: Егорьевский муниципальный район | D92: 01609000 | E92: Малошелковниковский сельсовет | F92: 01609428 | G92: 26809831 | H92: МУП "Тепло" | I92: 2239004054 | J92: 223901001 | K92: производство (некомбинированная выработка)+передача+сбыт | L92: WARM
A93: 92 | B93: Алтайский край | C93: Завьяловский муниципальный район | D93: 01611000 | E93: Завьяловский сельсовет | F93: 01611434 | G93: 28424771 | H93: МУП "Тепловик" | I93: 2241000226 | J93: 224101001 | K93: производство (некомбинированная выработка)+передача+сбыт | L93: WARM
A94: 93 | B94: Алтайский край | C94: Баевский муниципальный район | D94: 01603000 | E94: Баевский сельсовет | F94: 01603407 | G94: 26354863 | H94: МУП "Тепловые сети Баевского сельсовета" | I94: 2233002170 | J94: 223301001 | K94: производство (некомбинированная выработка)+передача+сбыт | L94: WARM
A95: 94 | B95: Алтайский край | C95: Город Славгород | D95: 01719000 | E95: Город Славгород | F95: 01719000 | G95: 27911927 | H95: МУП "Тепловые сети г. Славгорода" | I95: 2210009204 | J95: 221001001 | K95: производство (некомбинированная выработка)+передача+сбыт | L95: WARM
A96: 95 | B96: Алтайский край | C96: Суетский муниципальный район | D96: 01641000 | E96: Верх-Суетский сельсовет | F96: 01641413 | G96: 26588741 | H96: МУП "Теплосети" | I96: 2275001355 | J96: 227501001 | K96: производство (некомбинированная выработка)+передача+сбыт | L96: WARM
A97: 96 | B97: Алтайский край | C97: Залесовский муниципальный район | D97: 01612000 | E97: Залесовский сельсовет | F97: 01612426 | G97: 28145383 | H97: МУП "Теплоснабжение" | I97: 2242004103 | J97: 224201001 | K97: производство (некомбинированная выработка)+передача+сбыт | L97: WARM
A98: 97 | B98: Алтайский край | C98: Алтайский муниципальный район | D98: 01602000 | E98: Алтайский сельсовет | F98: 01602407 | G98: 26354861 | H98: МУП "Теплоцентраль" | I98: 2232007970 | J98: 223201001 | K98: производство (некомбинированная выработка)+передача+сбыт | L98: WARM
A99: 98 | B99: Алтайский край | C99: Романовский муниципальный район | D99: 01637000 | E99: Романовский сельсовет | F99: 01637468 | G99: 28284214 | H99: МУП "Теплоцентраль" | I99: 2268002728 | J99: 226801001 | K99: производство (некомбинированная выработка)+передача+сбыт | L99: WARM
A100: 99 | B100: Алтайский край | C100: Солонешенский муниципальный район | D100: 01643000 | E100: Тумановский сельсовет | F100: 01643481 | G100: 26354960 | H100: МУП "Тумановское" | I100: 2273320155 | J100: 227301001 | K100: производство (некомбинированная выработка)+передача+сбыт | L100: WARM
A101: 100 | B101: Алтайский край | C101: Город Барнаул | D101: 01701000 | E101: Город Барнаул | F101: 01701000 | G101: 26522876 | H101: МУП "Энергетик" | I101: 2224134685 | J101: 222401001 | K101: производство (некомбинированная выработка)+передача+сбыт | L101: WARM
A102: 101 | B102: Алтайский край | C102: Город Яровое | D102: 01730000 | E102: Город Яровое | F102: 01730000 | G102: 27770434 | H102: МУП "ЯТЭК" | I102: 2210009187 | J102: 221101001 | K102: Передача+Сбыт | L102: WARM
A103: 102 | B103: Алтайский край | C103: Город Яровое | D103: 01730000 | E103: Город Яровое | F103: 01730000 | G103: 27770434 | H103: МУП "ЯТЭК" | I103: 2210009187 | J103: 221101001 | K103: производство комбинированная выработка | L103: WARM
A104: 103 | B104: Алтайский край | C104: Целинный муниципальный район | D104: 01657000 | E104: Марушинский сельсовет | F104: 01657434 | G104: 26522964 | H104: МУП ЖКХ "Марушка" | I104: 2287005636 | J104: 228701001 | K104: производство (некомбинированная выработка)+передача+сбыт | L104: WARM
A105: 104 | B105: Алтайский край | C105: Ребрихинский муниципальный район | D105: 01635000 | E105: Станционно-Ребрихинский сельсовет | F105: 01635476 | G105: 26354940 | H105: МУП КХ при Администрации ст. Ребриха | I105: 2266003483 | J105: 226601001 | K105: производство (некомбинированная выработка)+передача+сбыт | L105: WARM
A106: 105 | B106: Алтайский край | C106: Троицкий муниципальный район | D106: 01651000 | E106: Троицкий сельсовет | F106: 01651457 | G106: 27551688 | H106: МУП МО Троицкий сельсовет Троицкого района Алтайского края "Тепловые сети" | I106: 2281005904 | J106: 228101001 | K106: производство (некомбинированная выработка)+передача+сбыт | L106: WARM
A107: 106 | B107: Алтайский край | C107: Локтевский муниципальный район | D107: 01625000 | E107: Александровский сельсовет | F107: 01625404 | G107: 26354909 | H107: МУП ТВС "Александровское коммунальное предприятие" | I107: 2256006615 | J107: 225601001 | K107: производство (некомбинированная выработка)+передача+сбыт | L107: WARM
A108: 107 | B108: Алтайский край | C108: Косихинский муниципальный район | D108: 01618000 | E108: Косихинский сельсовет | F108: 01618434 | G108: 26354889 | H108: МУП ТС "Косихинское" | I108: 2249002120 | J108: 224901001 | K108: производство (некомбинированная выработка)+передача+сбыт | L108: WARM
A109: 108 | B109: Алтайский край | C109: Рубцовский муниципальный район | D109: 01638000 | E109: Рубцовский сельсовет | F109: 01638462 | G109: 26379350 | H109: МУП ТС "Тепло" | I109: 2269008465 | J109: 226001901 | K109: производство (некомбинированная выработка)+передача+сбыт | L109: WARM
A110: 109 | B110: Алтайский край | C110: Топчихинский муниципальный район | D110: 01649000 | E110: Топчихинский сельсовет | F110: 01649462 | G110: 26354971 | H110: МУП ТС "Топчихинское" | I110: 2279005181 | J110: 227901001 | K110: производство (некомбинированная выработка)+передача+сбыт | L110: WARM
A111: 110 | B111: Алтайский край | C111: Город Новоалтайск | D111: 01713000 | E111: Город Новоалтайск | F111: 01713000 | G111: 26354819 | H111: МУП г. Новоалтайска "НТС" | I111: 2208002579 | J111: 220801001 | K111: производство (некомбинированная выработка)+передача+сбыт | L111: WARM
A112: 111 | B112: Алтайский край | C112: Чарышский муниципальный район | D112: 01658000 | E112: Маралихинский сельсовет | F112: 01658433 | G112: 26371310 | H112: Маралихинский сельсовет | I112: 2288000969 | J112: 228801001 | K112: производство (некомбинированная выработка)+передача+сбыт | L112: WARM
A113: 112 | B113: Алтайский край | C113: Город Барнаул | D113: 01701000 | E113: Город Барнаул | F113: 01701000 | G113: 26354839 | H113: ОАО "АЗА" | I113: 2225003220 | J113: 222501001 | K113: производство (некомбинированная выработка)+передача+сбыт | L113: WARM
A114: 113 | B114: Алтайский край | C114: Город Барнаул | D114: 01701000 | E114: Город Барнаул | F114: 01701000 | G114: 26354917 | H114: ОАО "Авиационное предприятие "Алтай" | I114: 2259001380 | J114: 222201001 | K114: производство (некомбинированная выработка)+передача+сбыт | L114: WARM
A115: 114 | B115: Алтайский край | C115: Город Алейск | D115: 01703000 | E115: Город Алейск | F115: 01703000 | G115: 26354800 | H115: ОАО "Алейский маслосыркомбинат" | I115: 2201000220 | J115: 220101001 | K115: производство (некомбинированная выработка)+передача+сбыт | L115: WARM
A116: 115 | B116: Алтайский край | C116: Город Заринск | D116: 01706000 | E116: Город Заринск | F116: 01706000 | G116: 26354809 | H116: ОАО "Алтай-Кокс" | I116: 2205001753 | J116: 220250001 | K116: Передача | L116: WARM
A117: 116 | B117: Алтайский край | C117: Город Заринск | D117: 01706000 | E117: Город Заринск | F117: 01706000 | G117: 26354809 | H117: ОАО "Алтай-Кокс" | I117: 2205001753 | J117: 220250001 | K117: производство комбинированная выработка | L117: WARM
A118: 117 | B118: Алтайский край | C118: Город Новоалтайск | D118: 01713000 | E118: Город Новоалтайск | F118: 01713000 | G118: 26354817 | H118: ОАО "Алтайвагон" | I118: 2208000010 | J118: 997850001 | K118: производство (некомбинированная выработка)+передача+сбыт | L118: WARM
A119: 118 | B119: Алтайский край | C119: Город Барнаул | D119: 01701000 | E119: Город Барнаул | F119: 01701000 | G119: 26648718 | H119: ОАО "Алтайские коммунальные системы" | I119: 2224081377 | J119: 222401001 | K119: Передача | L119: WARM
A120: 119 | B120: Алтайский край | C120: Город Барнаул | D120: 01701000 | E120: Город Барнаул | F120: 01701000 | G120: 27808247 | H120: ОАО "Барнаульская ТЭЦ-3" | I120: 2224152765 | J120: 222401001 | K120: производство комбинированная выработка | L120: WARM
A121: 120 | B121: Алтайский край | C121: Город Барнаул | D121: 01701000 | E121: Город Барнаул | F121: 01701000 | G121: 27808198 | H121: ОАО "Барнаульская генерация" | I121: 2224152758 | J121: 222401001 | K121: производство комбинированная выработка | L121: WARM
A122: 121 | B122: Алтайский край | C122: Город Барнаул | D122: 01701000 | E122: Город Барнаул | F122: 01701000 | G122: 27808172 | H122: ОАО "Барнаульская теплосетевая компания" | I122: 2224152780 | J122: 222401001 | K122: производство (некомбинированная выработка)+передача+сбыт | L122: WARM
A123: 122 | B123: Алтайский край | C123: Город Барнаул | D123: 01701000 | E123: Город Барнаул | F123: 01701000 | G123: 26354841 | H123: ОАО "Барнаульский дрожжевой завод" | I123: 2225020842 | J123: 222501001 | K123: производство (некомбинированная выработка)+передача+сбыт | L123: WARM
A124: 123 | B124: Алтайский край | C124: Город Бийск | D124: 01705000 | E124: Город Бийск | F124: 01705000 | G124: 26820897 | H124: ОАО "Бийскэнерго" | I124: 2204052762 | J124: 220250001 | K124: производство комбинированная выработка | L124: WARM
A125: 124 | B125: Алтайский край | C125: Город Бийск | D125: 01705000 | E125: Город Бийск | F125: 01705000 | G125: 27501770 | H125: ОАО "БийскэнергоТеплоТранзит" | I125: 2204056968 | J125: 220401001 | K125: Передача | L125: WARM
A126: 125 | B126: Алтайский край | C126: Город Барнаул | D126: 01701000 | E126: Город Барнаул | F126: 01701000 | G126: 26354847 | H126: ОАО "ИПП "Алтай" | I126: 2225073266 | J126: 222501001 | K126: производство (некомбинированная выработка)+передача+сбыт | L126: WARM
A127: 126 | B127: Алтайский край | C127: Шелаболихинский муниципальный район | D127: 01645000 | E127: Кипринский сельсовет | F127: 01645428 | G127: 26371324 | H127: ОАО "Кипринское" | I127: 2290000980 | J127: 229001001 | K127: производство (некомбинированная выработка)+передача+сбыт | L127: WARM
A128: 127 | B128: Алтайский край | C128: Кулундинский муниципальный район | D128: 01622000 | E128: Кулундинский сельсовет | F128: 01622460 | G128: 26354895 | H128: ОАО "Кулундаконсервмолоко" | I128: 2253000164 | J128: 225301001 | K128: производство (некомбинированная выработка)+передача+сбыт | L128: WARM
A129: 128 | B129: Алтайский край | C129: Благовещенский муниципальный район | D129: 01605000 | E129: Степноозёрский поссовет | F129: 01605157 | G129: 26354870 | H129: ОАО "Кучуксульфат" | I129: 2235001430 | J129: 223501001 | K129: Передача | L129: WARM
A130: 129 | B130: Алтайский край | C130: Благовещенский муниципальный район | D130: 01605000 | E130: Степноозёрский поссовет | F130: 01605157 | G130: 26354870 | H130: ОАО "Кучуксульфат" | I130: 2235001430 | J130: 223501001 | K130: производство комбинированная выработка | L130: WARM
A131: 130 | B131: Алтайский край | C131: Город Рубцовск | D131: 01716000 | E131: Город Рубцовск | F131: 01716000 | G131: 26653713 | H131: ОАО "Мельник" | I131: 2209006093 | J131: 220250001 | K131: производство (некомбинированная выработка)+передача+сбыт | L131: WARM
A132: 131 | B132: Алтайский край | C132: Город Новоалтайск | D132: 01713000 | E132: Город Новоалтайск | F132: 01713000 | G132: 27505890 | H132: ОАО "НЗМК" | I132: 2208022448 | J132: 220801001 | K132: производство (некомбинированная выработка)+передача+сбыт | L132: WARM
A133: 132 | B133: Алтайский край | C133: Павловский муниципальный район | D133: 01630000 | E133: Стуковский сельсовет | F133: 01630473 | G133: 26758448 | H133: ОАО "Стуковское" | I133: 2261001644 | J133: 226101001 | K133: производство (некомбинированная выработка)+передача+сбыт | L133: WARM
A134: 133 | B134: Алтайский край | C134: Город Барнаул | D134: 01701000 | E134: Город Барнаул | F134: 01701000 | G134: 26648423 | H134: ОАО "Управляющая компания "Доверие" | I134: 2224119510 | J134: 222401001 | K134: Передача+Сбыт | L134: WARM
A135: 134 | B135: Алтайский край | C135: Благовещенский муниципальный район | D135: 01605000 | E135: Леньковский сельсовет | F135: 01605436 | G135: 26651888 | H135: ОАО "Хлебная база №39" | I135: 2235001743 | J135: 223501001 | K135: производство (некомбинированная выработка)+передача+сбыт | L135: WARM
A136: 135 | B136: Алтайский край | C136: Павловский муниципальный район | D136: 01630000 | E136: Черемновский сельсовет | F136: 01630482 | G136: 26354922 | H136: ОАО "Черемновский сахарный завод" | I136: 2261001027 | J136: 226101001 | K136: производство комбинированная выработка | L136: WARM
A137: 136 | B137: Алтайский край | C137: Топчихинский муниципальный район | D137: 01649000 | E137: Победимский сельсовет | F137: 01649452 | G137: 26371227 | H137: ОАО ПР "Чистюньский" | I137: 2279005833 | J137: 227901001 | K137: производство (некомбинированная выработка)+передача+сбыт | L137: WARM
A138: 137 | B138: Алтайский край | C138: Ребрихинский муниципальный район | D138: 01635000 | E138: Ребрихинский сельсовет | F138: 01635464 | G138: 26515065 | H138: ООО "АПС-Исток" | I138: 2266600592 | J138: 226601001 | K138: производство (некомбинированная выработка)+передача+сбыт | L138: WARM
A139: 138 | B139: Алтайский край | C139: Город Алейск | D139: 01703000 | E139: Город Алейск | F139: 01703000 | G139: 26807667 | H139: ООО "Алейская тепловая компания" | I139: 2201008853 | J139: 220101001 | K139: производство (некомбинированная выработка)+передача+сбыт | L139: WARM
A140: 139 | B140: Алтайский край | C140: Зональный муниципальный район | D140: 01629000 | E140: Зональный сельсовет | F140: 01629426 | G140: 27713242 | H140: ООО "Алтайский Инженерный Центр" | I140: 2225093583 | J140: 222101001 | K140: производство (некомбинированная выработка)+передача+сбыт | L140: WARM
A141: 140 | B141: Алтайский край | C141: Город Барнаул | D141: 01701000 | E141: Город Барнаул | F141: 01701000 | G141: 26649689 | H141: ООО "Алтайэнергосетьпроект" | I141: 2225055563 | J141: 222501001 | K141: производство (некомбинированная выработка)+передача+сбыт | L141: WARM
A142: 141 | B142: Алтайский край | C142: Павловский муниципальный район | D142: 01630000 | E142: Арбузовский сельсовет | F142: 01630401 | G142: 26651880 | H142: ООО "Арбузовские коммунальные системы" | I142: 2261008897 | J142: 226101001 | K142: производство (некомбинированная выработка)+передача+сбыт | L142: WARM
A143: 142 | B143: Алтайский край | C143: Бийский муниципальный район | D143: 01604000 | E143: Первомайский сельсовет | F143: 01604470 | G143: 27952252 | H143: ООО "Аркада" | I143: 2234019498 | J143: 223401001 | K143: производство (некомбинированная выработка)+передача+сбыт | L143: WARM
A144: 143 | B144: Алтайский край | C144: Первомайский муниципальный район | D144: 01632000 | E144: Березовский сельсовет | F144: 01632416 | G144: 27812600 | H144: ООО "Берёзовское ЖКХ" | I144: 2263026588 | J144: 226301001 | K144: производство (некомбинированная выработка)+передача+сбыт | L144: WARM
A145: 144 | B145: Алтайский край | C145: Смоленский муниципальный район | D145: 01640000 | E145: Линевский сельсовет | F145: 01640434 | G145: 28254196 | H145: ООО "БиТЭК" | I145: 2271002830 | J145: 227101001 | K145: производство (некомбинированная выработка)+передача+сбыт | L145: WARM
A146: 145 | B146: Алтайский край | C146: Город Бийск | D146: 01705000 | E146: Город Бийск | F146: 01705000 | G146: 28160632 | H146: ООО "Бийскэнергосервис" | I146: 2204063972 | J146: 220401001 | K146: Передача | L146: WARM
A147: 146 | B147: Алтайский край | C147: Первомайский муниципальный район | D147: 01632000 | E147: Бобровский сельсовет | F147: 01632420 | G147: 26649183 | H147: ООО "Бобровский лесокомбинат" | I147: 2263023354 | J147: 226301001 | K147: производство (некомбинированная выработка)+передача+сбыт | L147: WARM
A148: 147 | B148: Алтайский край | C148: Ключевский муниципальный район | D148: 01617000 | E148: Васильчуковский сельсовет | F148: 01617406 | G148: 26370995 | H148: ООО "ВКС" | I148: 2248005209 | J148: 224801001 | K148: производство (некомбинированная выработка)+передача+сбыт | L148: WARM
A149: 148 | B149: Алтайский край | C149: Новичихинский муниципальный район | D149: 01628000 | E149: Долговский сельсовет | F149: 01628411 | G149: 26790728 | H149: ООО "Верный путь" | I149: 2260002211 | J149: 226001001 | K149: производство (некомбинированная выработка)+передача+сбыт | L149: WARM
A150: 149 | B150: Алтайский край | C150: Бийский муниципальный район | D150: 01604000 | E150: Верх-Бехтемирский сельсовет | F150: 01604415 | G150: 26519989 | H150: ООО "Верх-Бехтемирское" | I150: 2234020038 | J150: 223401001 | K150: производство (некомбинированная выработка)+передача+сбыт | L150: WARM
A151: 150 | B151: Алтайский край | C151: Быстроистокский муниципальный район | D151: 01607000 | E151: Верх-Ануйский сельсовет | F151: 01607411 | G151: 26772537 | H151: ООО "Водопровод" | I151: 2237002855 | J151: 223701001 | K151: производство (некомбинированная выработка)+передача+сбыт | L151: WARM
A152: 151 | B152: Алтайский край | C152: Рубцовский муниципальный район | D152: 01638000 | E152: Рубцовский сельсовет | F152: 01638462 | G152: 26651822 | H152: ООО "Водотеплоснабжения "Тепло" | I152: 2269009148 | J152: 226901001 | K152: производство (некомбинированная выработка)+передача+сбыт | L152: WARM
A153: 152 | B153: Алтайский край | C153: Кулундинский муниципальный район | D153: 01622000 | E153: Кулундинский сельсовет | F153: 01622460 | G153: 26521481 | H153: ООО "Восток" | I153: 2253005042 | J153: 225301001 | K153: производство (некомбинированная выработка)+передача+сбыт | L153: WARM
A154: 153 | B154: Алтайский край | C154: Локтевский муниципальный район | D154: 01625000 | E154: Георгиевский сельсовет | F154: 01625413 | G154: 27469444 | H154: ООО "Восток" | I154: 2256005516 | J154: 225601001 | K154: производство (некомбинированная выработка)+передача+сбыт | L154: WARM
A155: 154 | B155: Алтайский край | C155: Волчихинский муниципальный район | D155: 01608000 | E155: Волчихинский сельсовет | F155: 01608421 | G155: 28263102 | H155: ООО "Вострово Лес" | I155: 2238003749 | J155: 223801001 | K155: производство (некомбинированная выработка)+передача+сбыт | L155: WARM
A156: 155 | B156: Алтайский край | C156: Благовещенский муниципальный район | D156: 01605000 | E156: Алексеевский сельсовет | F156: 01605406 | G156: 27249233 | H156: ООО "Восход" | I156: 2235007456 | J156: 223501001 | K156: производство (некомбинированная выработка)+передача+сбыт | L156: WARM
A157: 156 | B157: Алтайский край | C157: Город Новоалтайск | D157: 01713000 | E157: Город Новоалтайск | F157: 01713000 | G157: 26653082 | H157: ООО "ГОРЕМ-3" | I157: 0411144305 | J157: 220501001 | K157: производство (некомбинированная выработка)+передача+сбыт | L157: WARM
A158: 157 | B158: Алтайский край | C158: Зональный муниципальный район | D158: 01629000 | E158: Чемровский сельсовет | F158: 01629493 | G158: 26802146 | H158: ООО "Гарант" | I158: 2245004366 | J158: 224501001 | K158: производство (некомбинированная выработка)+передача+сбыт | L158: WARM
A159: 158 | B159: Алтайский край | C159: Заринский муниципальный район | D159: 01613000 | E159: Голухинский сельсовет | F159: 01613428 | G159: 26521928 | H159: ООО "Голухацемсервис" | I159: 2244005367 | J159: 224401001 | K159: производство (некомбинированная выработка)+передача+сбыт | L159: WARM
A160: 159 | B160: Алтайский край | C160: Бийский муниципальный район | D160: 01604000 | E160: Енисейский сельсовет | F160: 01604422 | G160: 28029572 | H160: ООО "Енисейское" | I160: 2234013658 | J160: 223401001 | K160: производство (некомбинированная выработка)+передача+сбыт | L160: WARM
A161: 160 | B161: Алтайский край | C161: Город Заринск | D161: 01706000 | E161: Город Заринск | F161: 01706000 | G161: 26379302 | H161: ООО "ЖКУ" | I161: 2205009865 | J161: 220501001 | K161: производство (некомбинированная выработка)+передача+сбыт | L161: WARM
A162: 161 | B162: Алтайский край | C162: Михайловский муниципальный район | D162: 01627000 | E162: Малиновоозёрский поссовет | F162: 01627154 | G162: 28036686 | H162: ООО "ЖКХ Малиновоозерское" | I162: 2258004980 | J162: 225801001 | K162: производство (некомбинированная выработка)+передача+сбыт | L162: WARM
A163: 162 | B163: Алтайский край | C163: Бийский муниципальный район | D163: 01604000 | E163: Светлоозерский сельсовет | F163: 01604480 | G163: 28422347 | H163: ООО "ЖКХ Светлоозерское" | I163: 2234014041 | J163: 223401001 | K163: производство (некомбинированная выработка)+передача+сбыт | L163: WARM
A164: 163 | B164: Алтайский край | C164: Солонешенский муниципальный район | D164: 01643000 | E164: Солонешенский сельсовет | F164: 01643450 | G164: 26522240 | H164: ООО "Жилищно-коммунальное хозяйство" | I164: 2273320229 | J164: 227301001 | K164: производство (некомбинированная выработка)+передача+сбыт | L164: WARM
A165: 164 | B165: Алтайский край | C165: Немецкий Национальный муниципальный район | D165: 01660000 | E165: Шумановский сельсовет | F165: 01660460 | G165: 26354916 | H165: ООО "Жилищное общество Гальбштадт" | I165: 2259000869 | J165: 225901001 | K165: производство (некомбинированная выработка)+передача+сбыт | L165: WARM
A166: 165 | B166: Алтайский край | C166: Бийский муниципальный район | D166: 01604000 | E166: Заринский сельсовет | F166: 01604424 | G166: 28261891 | H166: ООО "Заринское ЖКХ" | I166: 2234013672 | J166: 223401001 | K166: производство (некомбинированная выработка)+передача+сбыт | L166: WARM
A167: 166 | B167: Алтайский край | C167: Город Барнаул | D167: 01701000 | E167: Город Барнаул | F167: 01701000 | G167: 26650210 | H167: ООО "Затан" | I167: 2225095809 | J167: 222501001 | K167: производство (некомбинированная выработка)+сбыт | L167: WARM
A168: 167 | B168: Алтайский край | C168: Хабарский муниципальный район | D168: 01656000 | E168: Зятьково-Реченский сельсовет | F168: 01656412 | G168: 26371301 | H168: ООО "Зятьково-Реченские ТВС" | I168: 2286003763 | J168: 228601001 | K168: производство (некомбинированная выработка)+передача+сбыт | L168: WARM
A169: 168 | B169: Алтайский край | C169: Тальменский муниципальный район | D169: 01647000 | E169: Тальменский поссовет | F169: 01647151 | G169: 27546813 | H169: ООО "Импульс" | I169: 2277012232 | J169: 227701001 | K169: производство (некомбинированная выработка)+передача+сбыт | L169: WARM
A170: 169 | B170: Алтайский край | C170: Алейский муниципальный район | D170: 01601000 | E170: Кировский сельсовет | F170: 01601438 | G170: 28425086 | H170: ООО "Кировское" | I170: 2231005031 | J170: 223101001 | K170: производство (некомбинированная выработка)+передача+сбыт | L170: WARM
A171: 170 | B171: Алтайский край | C171: Ключевский муниципальный район | D171: 01617000 | E171: Ключевский сельсовет | F171: 01617424 | G171: 26370994 | H171: ООО "Ключевские коммунальные системы" | I171: 2248005199 | J171: 224801001 | K171: производство (некомбинированная выработка)+передача+сбыт | L171: WARM
A172: 171 | B172: Алтайский край | C172: Локтевский муниципальный район | D172: 01625000 | E172: Покровский сельсовет | F172: 01625466 | G172: 28145394 | H172: ООО "Колос" | I172: 2256006044 | J172: 225601001 | K172: производство (некомбинированная выработка)+передача+сбыт | L172: WARM
A173: 172 | B173: Алтайский край | C173: Ельцовский муниципальный район | D173: 01610000 | E173: Ельцовский сельсовет | F173: 01610422 | G173: 28424525 | H173: ООО "Коммунальное" | I173: 2240003993 | J173: 224001001 | K173: производство (некомбинированная выработка)+передача+сбыт | L173: WARM
A174: 173 | B174: Алтайский край | C174: Зональный муниципальный район | D174: 01629000 | E174: Зональный сельсовет | F174: 01629426 | G174: 27284669 | H174: ООО "Коммунальщик" | I174: 2245004408 | J174: 224501001 | K174: Передача+Сбыт | L174: WARM
A175: 174 | B175: Алтайский край | C175: Михайловский муниципальный район | D175: 01627000 | E175: Ракитовский сельсовет | F175: 01627444 | G175: 27254141 | H175: ООО "Коммунальщик" | I175: 2258004878 | J175: 225801001 | K175: производство (некомбинированная выработка)+передача+сбыт | L175: WARM
A176: 175 | B176: Алтайский край | C176: Поспелихинский муниципальный район | D176: 01634000 | E176: Поспелихинский сельсовет | F176: 01634489 | G176: 26629465 | H176: ООО "Коммунальщик" | I176: 2265040605 | J176: 226501001 | K176: производство (некомбинированная выработка)+передача+сбыт | L176: WARM
A177: 176 | B177: Алтайский край | C177: Третьяковский муниципальный район | D177: 01650000 | E177: Староалейский сельсовет | F177: 01650466 | G177: 28272177 | H177: ООО "Коммунальщик" | I177: 2280002788 | J177: 228001001 | K177: производство (некомбинированная выработка)+передача+сбыт | L177: WARM
A178: 177 | B178: Алтайский край | C178: Город Камень-на-Оби | D178: 01710000 | E178: Город Камень-на-Оби | F178: 01710000 | G178: 27876773 | H178: ООО "Коммунальщик-1" | I178: 2207009067 | J178: 220701001 | K178: производство (некомбинированная выработка) | L178: WARM
A179: 178 | B179: Алтайский край | C179: Город Камень-на-Оби | D179: 01710000 | E179: Город Камень-на-Оби | F179: 01710000 | G179: 27876797 | H179: ООО "Коммунальщик-3" | I179: 2207009050 | J179: 220701001 | K179: производство (некомбинированная выработка) | L179: WARM
A180: 179 | B180: Алтайский край | C180: Город Барнаул | D180: 01701000 | E180: Город Барнаул | F180: 01701000 | G180: 26370856 | H180: ООО "Коммунсервис" | I180: 2222027381 | J180: 222201001 | K180: Передача | L180: WARM
A181: 180 | B181: Алтайский край | C181: Михайловский муниципальный район | D181: 01627000 | E181: Михайловский сельсовет | F181: 01627416 | G181: 27254150 | H181: ООО "Коммунсервис" | I181: 2258004807 | J181: 225801001 | K181: производство (некомбинированная выработка)+передача+сбыт | L181: WARM
A182: 181 | B182: Алтайский край | C182: Красногорский муниципальный район | D182: 01619000 | E182: Красногорский сельсовет | F182: 01619423 | G182: 26522303 | H182: ООО "Коммунэнерго" | I182: 2250700792 | J182: 225001001 | K182: производство (некомбинированная выработка)+передача+сбыт | L182: WARM
A183: 182 | B183: Алтайский край | C183: Павловский муниципальный район | D183: 01630000 | E183: Комсомольский сельсовет | F183: 01630437 | G183: 26649243 | H183: ООО "Комсомольское ЖКХ" | I183: 2261009241 | J183: 226101001 | K183: производство (некомбинированная выработка)+передача+сбыт | L183: WARM
A184: 183 | B184: Алтайский край | C184: Хабарский муниципальный район | D184: 01656000 | E184: Коротоякский сельсовет | F184: 01656420 | G184: 26581339 | H184: ООО "Короткоякское коммунальное хозяйство" | I184: 2286003925 | J184: 228601001 | K184: производство (некомбинированная выработка)+передача+сбыт | L184: WARM
A185: 184 | B185: Алтайский край | C185: Хабарский муниципальный район | D185: 01656000 | E185: Хабарский сельсовет | F185: 01656493 | G185: 28424069 | H185: ООО "Кристалл-Хабары" | I185: 2286004189 | J185: 228601001 | K185: производство (некомбинированная выработка)+передача+сбыт | L185: WARM
A186: 185 | B186: Алтайский край | C186: Курьинский муниципальный район | D186: 01623000 | E186: Курьинский сельсовет | F186: 01623466 | G186: 26771639 | H186: ООО "Курьинские коммунальные системы" | I186: 2254003640 | J186: 225401001 | K186: производство (некомбинированная выработка)+передача+сбыт | L186: WARM
A187: 186 | B187: Алтайский край | C187: Тальменский муниципальный район | D187: 01647000 | E187: Ларичихинский сельсовет | F187: 01647442 | G187: 26649323 | H187: ООО "Ларичихинское" | I187: 2277011503 | J187: 227701001 | K187: производство (некомбинированная выработка)+передача+сбыт | L187: WARM
A188: 187 | B188: Алтайский край | C188: Бийский муниципальный район | D188: 01604000 | E188: Лесной сельсовет | F188: 01604437 | G188: 26520004 | H188: ООО "Лесное ЖКХ" | I188: 2234020133 | J188: 223401001 | K188: производство (некомбинированная выработка)+передача+сбыт | L188: WARM
A189: 188 | B189: Алтайский край | C189: Локтевский муниципальный район | D189: 01625000 | E189: Локтевский сельсовет | F189: 01625434 | G189: 27253640 | H189: ООО "Локтевский" | I189: 2256007626 | J189: 225601001 | K189: производство (некомбинированная выработка)+передача+сбыт | L189: WARM
A190: 189 | B190: Алтайский край | C190: Поспелихинский муниципальный район | D190: 01634000 | E190: Калмыцко-Мысовский сельсовет | F190: 01634433 | G190: 26629467 | H190: ООО "Луч" | I190: 2265005230 | J190: 226501001 | K190: производство (некомбинированная выработка)+передача+сбыт | L190: WARM
A191: 190 | B191: Алтайский край | C191: Хабарский муниципальный район | D191: 01656000 | E191: Мартовский сельсовет | F191: 01656430 | G191: 26581341 | H191: ООО "Мартовские тепловодосети" | I191: 2286003918 | J191: 228601001 | K191: производство (некомбинированная выработка)+передача+сбыт | L191: WARM
A192: 191 | B192: Алтайский край | C192: Локтевский муниципальный район | D192: 01625000 | E192: Масальский сельсовет | F192: 01625440 | G192: 27876721 | H192: ООО "Масальское ТВС" | I192: 2256007707 | J192: 225601001 | K192: производство (некомбинированная выработка)+передача+сбыт | L192: WARM
A193: 192 | B193: Алтайский край | C193: Город Барнаул | D193: 01701000 | E193: Город Барнаул | F193: 01701000 | G193: 28424531 | H193: ООО "Металл-Импорт" | I193: 2221206483 | J193: 222101001 | K193: производство (некомбинированная выработка)+передача+сбыт | L193: WARM
A194: 193 | B194: Алтайский край | C194: Хабарский муниципальный район | D194: 01656000 | E194: Новоильинский сельсовет | F194: 01656446 | G194: 28424325 | H194: ООО "Монолит" | I194: 2286004206 | J194: 228601001 | K194: производство (некомбинированная выработка)+передача+сбыт | L194: WARM
A195: 194 | B195: Алтайский край | C195: Город Новоалтайск | D195: 01713000 | E195: Город Новоалтайск | F195: 01713000 | G195: 28069309 | H195: ООО "НЗЖБИ им. Иванова Г.С." | I195: 2208019364 | J195: 220801001 | K195: производство (некомбинированная выработка)+сбыт | L195: WARM
A196: 195 | B196: Алтайский край | C196: Город Бийск | D196: 01705000 | E196: Город Бийск | F196: 01705000 | G196: 27773444 | H196: ООО "НПК-Энерго" | I196: 2204031610 | J196: 220401001 | K196: Передача | L196: WARM
A197: 196 | B197: Алтайский край | C197: Солтонский муниципальный район | D197: 01644000 | E197: Солтонский сельсовет | F197: 01644481 | G197: 28006792 | H197: ООО "НЭП" | I197: 2274004716 | J197: 227401001 | K197: производство (некомбинированная выработка)+передача+сбыт | L197: WARM
A198: 197 | B198: Алтайский край | C198: Тальменский муниципальный район | D198: 01647000 | E198: Тальменский поссовет | F198: 01647151 | G198: 28052792 | H198: ООО "НЭРИ" | I198: 2277012433 | J198: 227701001 | K198: производство (некомбинированная выработка)+передача+сбыт | L198: WARM
A199: 198 | B199: Алтайский край | C199: Город Барнаул | D199: 01701000 | E199: Город Барнаул | F199: 01701000 | G199: 26524356 | H199: ООО "Научный городок" | I199: 2223054211 | J199: 222301001 | K199: производство (некомбинированная выработка)+передача+сбыт | L199: WARM
A200: 199 | B200: Алтайский край | C200: Город Барнаул | D200: 01701000 | E200: Город Барнаул | F200: 01701000 | G200: 26354846 | H200: ООО "Нерудная партия" | I200: 2225073210 | J200: 222501001 | K200: производство (некомбинированная выработка)+передача+сбыт | L200: WARM
... 95 more rows

Sheet modClassifierValidate (hidden)

Sheet modProv (hidden)

Sheet modHyp (hidden)

Sheet modList00 (hidden)

Sheet modList02 (hidden)

Sheet modList03 (hidden)

Sheet modList04 (hidden)

Sheet modList05 (hidden)

Sheet modList06 (hidden)

Sheet modList07 (hidden)

Sheet modfrmDateChoose (hidden)

Sheet modComm (hidden)

Sheet modThisWorkbook (hidden)

Sheet REESTR_MO (hidden)
A1: № | B1: МР | C1: МО | D1: МО_ОКТМО
A2: 1 | B2: Александро-Невский муниципальный район | C2: Александро-Невский муниципальный район | D2: 61620000
A3: 2 | B3: Александро-Невский муниципальный район | C3: Александро-Невское | D3: 61620151
A4: 3 | B4: Александро-Невский муниципальный район | C4: Благовское | D4: 61620405
A5: 4 | B5: Александро-Невский муниципальный район | C5: Борисовское | D5: 61620410
A6: 5 | B6: Александро-Невский муниципальный район | C6: Каширинское | D6: 61620450
A7: 6 | B7: Александро-Невский муниципальный район | C7: Нижнеякимецкое | D7: 61620445
A8: 7 | B8: Александро-Невский муниципальный район | C8: Просеченское | D8: 61620460
A9: 8 | B9: Город Касимов | C9: Город Касимов | D9: 61705000
A10: 9 | B10: Город Рязань | C10: Город Рязань | D10: 61701000
A11: 10 | B11: Город Сасово | C11: Город Сасово | D11: 61710000
A12: 11 | B12: Город Скопин | C12: Город Скопин | D12: 61715000
A13: 12 | B13: Ермишинский муниципальный район | C13: Азеевское | D13: 61602405
A14: 13 | B14: Ермишинский муниципальный район | C14: Ермишинский муниципальный район | D14: 61602000
A15: 14 | B15: Ермишинский муниципальный район | C15: Ермишинское | D15: 61602151
A16: 15 | B16: Ермишинский муниципальный район | C16: Мердушинское | D16: 61602425
A17: 16 | B17: Ермишинский муниципальный район | C17: Надежкинское | D17: 61602430
A18: 17 | B18: Ермишинский муниципальный район | C18: Нарминское | D18: 61602435
A19: 18 | B19: Ермишинский муниципальный район | C19: Савватемское | D19: 61602440
A20: 19 | B20: Захаровский муниципальный район | C20: Безлыченское | D20: 61604412
A21: 20 | B21: Захаровский муниципальный район | C21: Большекоровинское | D21: 61604415
A22: 21 | B22: Захаровский муниципальный район | C22: Добро-Пчельское | D22: 61604430
A23: 22 | B23: Захаровский муниципальный район | C23: Елинское | D23: 61604432
A24: 23 | B24: Захаровский муниципальный район | C24: Захаровский муниципальный район | D24: 61604000
A25: 24 | B25: Захаровский муниципальный район | C25: Захаровское | D25: 61604440
A26: 25 | B26: Захаровский муниципальный район | C26: Плахинское | D26: 61604465
A27: 26 | B27: Захаровский муниципальный район | C27: Сменовское | D27: 61604425
A28: 27 | B28: Кадомский муниципальный район | C28: Восходское | D28: 61606405
A29: 28 | B29: Кадомский муниципальный район | C29: Енкаевское | D29: 61606410
A30: 29 | B30: Кадомский муниципальный район | C30: Кадомский муниципальный район | D30: 61606000
A31: 30 | B31: Кадомский муниципальный район | C31: Кадомское | D31: 61606151
A32: 31 | B32: Кадомский муниципальный район | C32: Котелинское | D32: 61606420
A33: 32 | B33: Кадомский муниципальный район | C33: Кущапинское | D33: 61606430
A34: 33 | B34: Касимовский муниципальный район | C34: Ардабьевское | D34: 61608403
A35: 34 | B35: Касимовский муниципальный район | C35: Ахматовское | D35: 61608406
A36: 35 | B36: Касимовский муниципальный район | C36: Булгаковское | D36: 61608439
A37: 36 | B37: Касимовский муниципальный район | C37: Гиблицкое | D37: 61608418
A38: 37 | B38: Касимовский муниципальный район | C38: Гусевское | D38: 61608154
A39: 38 | B39: Касимовский муниципальный район | C39: Дмитриевское | D39: 61608421
A40: 39 | B40: Касимовский муниципальный район | C40: Елатомское | D40: 61608156
A41: 40 | B41: Касимовский муниципальный район | C41: Ермоловское | D41: 61608424
A42: 41 | B42: Касимовский муниципальный район | C42: Ибердусское | D42: 61608430
A43: 42 | B43: Касимовский муниципальный район | C43: Касимовский муниципальный район | D43: 61608000
A44: 43 | B44: Касимовский муниципальный район | C44: Китовское | D44: 61608433
A45: 44 | B45: Касимовский муниципальный район | C45: Клетинское | D45: 61608434
A46: 45 | B46: Касимовский муниципальный район | C46: Которовское | D46: 61608442
A47: 46 | B47: Касимовский муниципальный район | C47: Крутоярское | D47: 61608453
A48: 47 | B48: Касимовский муниципальный район | C48: Лашманское | D48: 61608454
A49: 48 | B49: Касимовский муниципальный район | C49: Лощининское | D49: 61608471
A50: 49 | B50: Касимовский муниципальный район | C50: Новодеревенское | D50: 61608456
A51: 50 | B51: Касимовский муниципальный район | C51: Овчинниковское | D51: 61608459
A52: 51 | B52: Касимовский муниципальный район | C52: Первинское | D52: 61608462
A53: 52 | B53: Касимовский муниципальный район | C53: Погостинское | D53: 61608465
A54: 53 | B54: Касимовский муниципальный район | C54: Савостьяновское | D54: 61608468
A55: 54 | B55: Касимовский муниципальный район | C55: Сынтульское | D55: 61608160
A56: 55 | B56: Касимовский муниципальный район | C56: Токаревское | D56: 61608474
A57: 56 | B57: Касимовский муниципальный район | C57: Торбаевское | D57: 61608412
A58: 57 | B58: Касимовский муниципальный район | C58: Шостьинское | D58: 61608480
A59: 58 | B59: Клепиковский муниципальный район | C59: Алексеевское | D59: 61610403
A60: 59 | B60: Клепиковский муниципальный район | C60: Болоньское | D60: 61610415
A61: 60 | B61: Клепиковский муниципальный район | C61: Бусаевское | D61: 61610418
A62: 61 | B62: Клепиковский муниципальный район | C62: Екшурское | D62: 61610451
A63: 62 | B63: Клепиковский муниципальный район | C63: Клепиковский муниципальный район | D63: 61610000
A64: 63 | B64: Клепиковский муниципальный район | C64: Колесниковское | D64: 61610448
A65: 64 | B65: Клепиковский муниципальный район | C65: Криушинское | D65: 61610454
A66: 65 | B66: Клепиковский муниципальный район | C66: Молькинское | D66: 61610475
A67: 66 | B67: Клепиковский муниципальный район | C67: Ненашкинское | D67: 61610487
A68: 67 | B68: Клепиковский муниципальный район | C68: Оськинское | D68: 61610472
A69: 68 | B69: Клепиковский муниципальный район | C69: Спас-Клепиковское | D69: 61610101
A70: 69 | B70: Клепиковский муниципальный район | C70: Тумское | D70: 61610154
A71: 70 | B71: Клепиковский муниципальный район | C71: Уткинское | D71: 61610421
A72: 71 | B72: Кораблинский муниципальный район | C72: Бобровинское | D72: 61612408
A73: 72 | B73: Кораблинский муниципальный район | C73: Кипчаковское | D73: 61612424
A74: 73 | B74: Кораблинский муниципальный район | C74: Ключанское | D74: 61612428
A75: 74 | B75: Кораблинский муниципальный район | C75: Ковалинское | D75: 61612432
A76: 75 | B76: Кораблинский муниципальный район | C76: Кораблинский муниципальный район | D76: 61612000
A77: 76 | B77: Кораблинский муниципальный район | C77: Кораблинское | D77: 61612101
A78: 77 | B78: Кораблинский муниципальный район | C78: Молвинослободское | D78: 61612456
A79: 78 | B79: Кораблинский муниципальный район | C79: Незнановское | D79: 61612448
A80: 79 | B80: Кораблинский муниципальный район | C80: Пехлецкое | D80: 61612460
A81: 80 | B81: Кораблинский муниципальный район | C81: Пустотинское | D81: 61612464
A82: 81 | B82: Кораблинский муниципальный район | C82: Яблоневское | D82: 61612484
A83: 82 | B83: Милославский муниципальный район | C83: Богородицкое | D83: 61615408
A84: 83 | B84: Милославский муниципальный район | C84: Большеподовечинское | D84: 61615412
A85: 84 | B85: Милославский муниципальный район | C85: Горняцкое | D85: 61615422
A86: 85 | B86: Милославский муниципальный район | C86: Кочуровское | D86: 61615428
A87: 86 | B87: Милославский муниципальный район | C87: Липяговское | D87: 61615432
A88: 87 | B88: Милославский муниципальный район | C88: Милославский муниципальный район | D88: 61615000
A89: 88 | B89: Милославский муниципальный район | C89: Павловское | D89: 61615456
A90: 89 | B90: Милославский муниципальный район | C90: Центральное | D90: 61615160
A91: 90 | B91: Милославский муниципальный район | C91: Чернавское | D91: 61615472
A92: 91 | B92: Милославский муниципальный район | C92: городское поселение Милославское | D92: 61615151
A93: 92 | B93: Милославский муниципальный район | C93: сельское поселение Милославское | D93: 61615444
A94: 93 | B94: Михайловский муниципальный район | C94: Виленское | D94: 61617406
A95: 94 | B95: Михайловский муниципальный район | C95: Голдинское | D95: 61617412
A96: 95 | B96: Михайловский муниципальный район | C96: Горностаевское | D96: 61617415
A97: 96 | B97: Михайловский муниципальный район | C97: Грязновское | D97: 61617418
A98: 97 | B98: Михайловский муниципальный район | C98: Жмуровское | D98: 61617421
A99: 98 | B99: Михайловский муниципальный район | C99: Ильичевское | D99: 61617476
A100: 99 | B100: Михайловский муниципальный район | C100: Каморинское | D100: 61617433
A101: 100 | B101: Михайловский муниципальный район | C101: Красновское | D101: 61617439
A102: 101 | B102: Михайловский муниципальный район | C102: Михайловский муниципальный район | D102: 61617000
A103: 102 | B103: Михайловский муниципальный район | C103: Михайловское | D103: 61617101
A104: 103 | B104: Михайловский муниципальный район | C104: Новопанское | D104: 61617448
A105: 104 | B105: Михайловский муниципальный район | C105: Октябрьское | D105: 61617154
A106: 105 | B106: Михайловский муниципальный район | C106: Печерниковское | D106: 61617451
A107: 106 | B107: Михайловский муниципальный район | C107: Поярковское | D107: 61617457
A108: 107 | B108: Михайловский муниципальный район | C108: Рачатниковское | D108: 61617460
A109: 108 | B109: Михайловский муниципальный район | C109: Слободское | D109: 61617467
A110: 109 | B110: Михайловский муниципальный район | C110: Стрелецко-Высельское | D110: 61617470
A111: 110 | B111: Михайловский муниципальный район | C111: Трепольское | D111: 61617473
A112: 111 | B112: Михайловский муниципальный район | C112: Чуриковское | D112: 61617485
A113: 112 | B113: Михайловский муниципальный район | C113: Щетининское | D113: 61617491
A114: 113 | B114: Пителинский муниципальный район | C114: Ермо-Николаевское | D114: 61623420
A115: 114 | B115: Пителинский муниципальный район | C115: Нестеровское | D115: 61623425
A116: 115 | B116: Пителинский муниципальный район | C116: Пеньковское | D116: 61623435
A117: 116 | B117: Пителинский муниципальный район | C117: Пителинский муниципальный район | D117: 61623000
A118: 117 | B118: Пителинский муниципальный район | C118: Пителинское | D118: 61623151
A119: 118 | B119: Пителинский муниципальный район | C119: Потапьевское | D119: 61623450
A120: 119 | B120: Пронский муниципальный район | C120: Малинищинское | D120: 61625435
A121: 120 | B121: Пронский муниципальный район | C121: Мамоновское | D121: 61625440
A122: 121 | B122: Пронский муниципальный район | C122: Новомичуринское | D122: 61625114
A123: 122 | B123: Пронский муниципальный район | C123: Октябрьское | D123: 61625445
A124: 123 | B124: Пронский муниципальный район | C124: Орловское | D124: 61625450
A125: 124 | B125: Пронский муниципальный район | C125: Погореловское | D125: 61625455
A126: 125 | B126: Пронский муниципальный район | C126: Пронский муниципальный район | D126: 61625000
A127: 126 | B127: Пронский муниципальный район | C127: Пронское | D127: 61625151
A128: 127 | B128: Пронский муниципальный район | C128: Тырновское | D128: 61625405
A129: 128 | B129: Путятинский муниципальный район | C129: Береговское | D129: 61626406
A130: 129 | B130: Путятинский муниципальный район | C130: Большеекатериновское | D130: 61626403
A131: 130 | B131: Путятинский муниципальный район | C131: Карабухинское | D131: 61626424
A132: 131 | B132: Путятинский муниципальный район | C132: Песочинское | D132: 61626432
A133: 132 | B133: Путятинский муниципальный район | C133: Путятинский муниципальный район | D133: 61626000
A134: 133 | B134: Путятинский муниципальный район | C134: Путятинское | D134: 61626436
A135: 134 | B135: Путятинский муниципальный район | C135: Строевское | D135: 61626412
A136: 135 | B136: Рыбновский муниципальный район | C136: Алешинское | D136: 61627404
A137: 136 | B137: Рыбновский муниципальный район | C137: Баграмовское | D137: 61627406
A138: 137 | B138: Рыбновский муниципальный район | C138: Батуринское | D138: 61627408
A139: 138 | B139: Рыбновский муниципальный район | C139: Вакинское | D139: 61627416
A140: 139 | B140: Рыбновский муниципальный район | C140: Глебковское | D140: 61627418
A141: 140 | B141: Рыбновский муниципальный район | C141: Истобниковское | D141: 61627424
A142: 141 | B142: Рыбновский муниципальный район | C142: Кузьминское | D142: 61627436
A143: 142 | B143: Рыбновский муниципальный район | C143: Пионерское | D143: 61627476
A144: 143 | B144: Рыбновский муниципальный район | C144: Пощуповское | D144: 61627456
A145: 144 | B145: Рыбновский муниципальный район | C145: Рыбновский муниципальный район | D145: 61627000
A146: 145 | B146: Рыбновский муниципальный район | C146: Рыбновское | D146: 61627101
A147: 146 | B147: Рыбновский муниципальный район | C147: Селецкое | D147: 61627460
A148: 147 | B148: Рыбновский муниципальный район | C148: Ходынинское | D148: 61627472
A149: 148 | B149: Рыбновский муниципальный район | C149: Чурилковское | D149: 61627464
A150: 149 | B150: Ряжский муниципальный район | C150: Алешинское | D150: 61630405
A151: 150 | B151: Ряжский муниципальный район | C151: Дегтянское | D151: 61630415
A152: 151 | B152: Ряжский муниципальный район | C152: Журавинское | D152: 61630420
A153: 152 | B153: Ряжский муниципальный район | C153: Петровское | D153: 61630450
A154: 153 | B154: Ряжский муниципальный район | C154: Поплевинское | D154: 61630460
A155: 154 | B155: Ряжский муниципальный район | C155: Ряжский муниципальный район | D155: 61630000
A156: 155 | B156: Ряжский муниципальный район | C156: Ряжское | D156: 61630101
A157: 156 | B157: Рязанский муниципальный район | C157: Варсковское | D157: 61634402
A158: 157 | B158: Рязанский муниципальный район | C158: Высоковское | D158: 61634409
A159: 158 | B159: Рязанский муниципальный район | C159: Вышгородское | D159: 61634412
A160: 159 | B160: Рязанский муниципальный район | C160: Дубровическое | D160: 61634427
A161: 160 | B161: Рязанский муниципальный район | C161: Дядьковское | D161: 61634430
A162: 161 | B162: Рязанский муниципальный район | C162: Екимовское | D162: 61634433
A163: 162 | B163: Рязанский муниципальный район | C163: Заборьевское | D163: 61634436
A164: 163 | B164: Рязанский муниципальный район | C164: Заокское | D164: 61634439
A165: 164 | B165: Рязанский муниципальный район | C165: Искровское | D165: 61634485
A166: 165 | B166: Рязанский муниципальный район | C166: Листвянское | D166: 61634457
A167: 166 | B167: Рязанский муниципальный район | C167: Льговское | D167: 61634460
A168: 167 | B168: Рязанский муниципальный район | C168: Мурминское | D168: 61634401
A169: 168 | B169: Рязанский муниципальный район | C169: Окское | D169: 61634475
A170: 169 | B170: Рязанский муниципальный район | C170: Подвязьевское | D170: 61634478
A171: 170 | B171: Рязанский муниципальный район | C171: Полянское | D171: 61634483
A172: 171 | B172: Рязанский муниципальный район | C172: Рязанский муниципальный район | D172: 61634000
A173: 172 | B173: Рязанский муниципальный район | C173: Семеновское | D173: 61634495
A174: 173 | B174: Рязанский муниципальный район | C174: Турлатовское | D174: 61634496
A175: 174 | B175: Рязанский муниципальный район | C175: Тюшевское | D175: 61634498
A176: 175 | B176: Сапожковский муниципальный район | C176: Березниковское | D176: 61637435
A177: 176 | B177: Сапожковский муниципальный район | C177: Канинское | D177: 61637410
A178: 177 | B178: Сапожковский муниципальный район | C178: Михеевское | D178: 61637405
A179: 178 | B179: Сапожковский муниципальный район | C179: Морозово-Борковское | D179: 61637430
A180: 179 | B180: Сапожковский муниципальный район | C180: Сапожковский муниципальный район | D180: 61637000
A181: 180 | B181: Сапожковский муниципальный район | C181: Сапожковское | D181: 61637151
A182: 181 | B182: Сараевский муниципальный район | C182: Алексеевское | D182: 61640403
A183: 182 | B183: Сараевский муниципальный район | C183: Борецкое | D183: 61640412
A184: 183 | B184: Сараевский муниципальный район | C184: Бычковское | D184: 61640415
A185: 184 | B185: Сараевский муниципальный район | C185: Высоковское | D185: 61640424
A186: 185 | B186: Сараевский муниципальный район | C186: Желобовское | D186: 61640430
A187: 186 | B187: Сараевский муниципальный район | C187: Кривское | D187: 61640436
A188: 187 | B188: Сараевский муниципальный район | C188: Можарское | D188: 61640442
A189: 188 | B189: Сараевский муниципальный район | C189: Муравлянское | D189: 61640448
A190: 189 | B190: Сараевский муниципальный район | C190: Напольновское | D190: 61640451
A191: 190 | B191: Сараевский муниципальный район | C191: Новобокинское | D191: 61640454
A192: 191 | B192: Сараевский муниципальный район | C192: Сараевский муниципальный район | D192: 61640000
A193: 192 | B193: Сараевский муниципальный район | C193: Сараевское | D193: 61640151
A194: 193 | B194: Сараевский муниципальный район | C194: Сысоевское | D194: 61640469
A195: 194 | B195: Сараевский муниципальный район | C195: Телятниковское | D195: 61640472
A196: 195 | B196: Сараевский муниципальный район | C196: Ягодновское | D196: 61640481
A197: 196 | B197: Сасовский муниципальный район | C197: Агломазовское | D197: 61642403
A198: 197 | B198: Сасовский муниципальный район | C198: Алешинское | D198: 61642406
A199: 198 | B199: Сасовский муниципальный район | C199: Батьковское | D199: 61642415
A200: 199 | B200: Сасовский муниципальный район | C200: Берестянское | D200: 61642408
... 96 more rows

Sheet modfrmReestrMR (hidden)

Sheet modfrmCheckUpdates (hidden)

Sheet CopyList (hidden)
E12: Наименование поставщика | G12: № п/п | H12: Способ приобретения
H13: Способ приобретения | I13: Реквизиты договора
